{"text_format":"1","workbook":"xlsx","n_sheets":6,"sheets":["Question","Start","Bill","Bill2","Mike","Sheet1"],"not_rendered":{"charts":0,"images":0,"macros":1,"external_links":0,"defined_names":2,"comments":1,"pivot_tables":0},"unopened":[],"bounds":{"document_bytes":16777216,"sheet_cells":100000,"rows_first":2000,"rows_last":500,"rows_between":2000,"halvings":0,"cell_chars":16384,"cell_head_chars":4096},"cells_cut":0,"cells_raw":0,"read":"whole","date_system":"1900"}

{"sheet":"Question","index":0,"n_rows":16,"n_cols":7,"rows_kept":16,"cut":false,"hidden":false,"merged":[]}
["List",null,"Lookup"]
["Toyota car",null,"Car","Toyota car","Benz Car","",""]
["GMC JEEP",null,"Truck","FORD Truck","","",""]
["Benz Car",null,"Jeep","GMC JEEP","","",""]
["Audi",null,"Cycle","","","",""]
["Yamaha bike",null,"Bike","Yamaha bike","Honda bike","Isuzu Bike",""]
["GMC",null,"Cow"]
["FORD Truck"]
["Honda bike"]
["Isuzu Bike"]
[]
["Lookup \"Car\" from cell C2 and find all the items in the list that contain \"Car\", and return them in one row.",null,null,null,null,""]
[]
["2010world1 from YouTube asked this question"]
[]
["Aproximate Lookup to return multiple items"]

{"sheet":"Start","index":1,"n_rows":10,"n_cols":8,"rows_kept":10,"cut":false,"hidden":false,"merged":[]}
["List",null,"Lookup","Count","Item 1","Item 2","Item 3","Item 4"]
["Toyota car",null,"Car"]
["GMC JEEP",null,"Truck"]
["Benz Car",null,"Jeep"]
["Audi",null,"Cycle"]
["Yamaha bike",null,"Bike"]
["GMC",null,"Cow"]
["FORD Truck"]
["Honda bike"]
["Isuzu Bike"]

{"sheet":"Bill","index":2,"n_rows":10,"n_cols":6,"rows_kept":10,"cut":false,"hidden":false,"merged":[]}
["List",null,"Lookup"]
["Toyota car",null,"Car","Toyota car","Benz Car"]
["GMC JEEP",null,"Truck","FORD Truck"]
["Benz Car",null,"Jeep","GMC JEEP"]
["Audi",null,"Cycle"]
["Yamaha bike",null,"Bike","Yamaha bike","Honda bike","Isuzu Bike"]
["GMC",null,"Cow"]
["FORD Truck"]
["Honda bike"]
["Isuzu Bike"]

{"sheet":"Bill2","index":3,"n_rows":100000,"n_cols":3,"rows_kept":4500,"cut":true,"hidden":false,"merged":[],"bounds":{"rows_first":2000,"rows_last":500,"rows_between":2000,"halvings":0}}
["List",null,"Lookup"]
["Aabpt Qms",null,"Car"]
["Aacvl Rxi",null,"Truck"]
["Aaeas Lxp",null,"Jeep"]
["Aagmw Jnt",null,"Cycle"]
["Aagpg Caq",null,"Bike"]
["Aahlj Lmb",null,"Cow"]
["Aaipt Fve",null,"Train"]
["Aakzb Ehz"]
["Aalck Adw"]
["Aaowl Awk"]
["Aasgd Yip"]
["Aatju Lxx"]
["Aauju Ilj"]
["Aaupf Qky"]
["Aavpy Xhs"]
["Aawuo Pms"]
["Aawzn Fzu"]
["Aazej Etw"]
["Abcqe Bbk"]
["Abebn Igj"]
["Abfjt Iex"]
["Abfmt Cxl"]
["Abfmt Jvi"]
["Abgpf Zsf"]
["Abgze Xgc"]
["Abhde Tey"]
["Abiet Zrk"]
["Abjcx Hmu"]
["Abjhv Gut"]
["Abloi Lko"]
["Ablou Irl"]
["Abncq Pta"]
["Aboia Atf"]
["Aboxm Afj"]
["Abpuh Qhq"]
["Abrwl Pzb"]
["Abucn Llm"]
["Abvku Hxw"]
["Abxnc Zpr"]
["Abyjl Inv"]
["Acdmr Ubz"]
["Acfcm Ach"]
["Acfsv Ogv"]
["Achjn Ppm"]
["Acird Nih"]
["Aclkq Ktz"]
["Acokr Lqa"]
["Acoqm Uzk"]
["Acqnr Iyc"]
["Acubj Fnj"]
["Acueh Tfy"]
["Acura car"]
["Acvfu Eru"]
["Acvxq Cvj"]
["Aczkt Oqj"]
["Aczni Eae"]
["Adakg Nza"]
["Adanx Owq"]
["Adcpz Jxm"]
["Addaa Kmm"]
["Adfno Gem"]
["Adfqz Rhu"]
["Adfra Gqq"]
["Adfxo Ewa"]
["Adfyz Yim"]
["Adhjb Dxd"]
["Adkua Rmd"]
["Admst Dxb"]
["Adpsp Com"]
["Adqce Kol"]
["Adqmr Zmd"]
["Adtck Igl"]
["Adugt Ntb"]
["Adyeh Ies"]
["Adyrs Ygx"]
["Aeavm Rxp"]
["Aebfl Fut"]
["Aefoh Pxt"]
["Aeftg Frz"]
["Aejtr Xtj"]
["Aeloa Ekh"]
["Aemxh Npe"]
["Aetnx Iah"]
["Aeuhc Suh"]
["Aewdj Nqm"]
["Aexal Sqm"]
["Aexrh Dyd"]
["Afcla Axt"]
["Afdoi Jcp"]
["Afdoi Xnj"]
["Afdsk Lip"]
["Afere Ggr"]
["Afexs Noq"]
["Affjt Uhs"]
["Afkwp Tqa"]
["Afmpw Rqs"]
["Afnye Rhs"]
["Afpnx Zho"]
["Afppo Yip"]
["Afrco Fbk"]
["Afstb Fdo"]
["Afxhg Tpd"]
["Afxqq Epu"]
["Afyrj Zbp"]
["Afzxs Prd"]
["Agasz Lrh"]
["Agauo Vqb"]
["Agcsv Wlr"]
["Agdqf Rwa"]
["Aginj Pmn"]
["Agjqk Xlx"]
["Agkop Rmp"]
["Agmae Rat"]
["Agmuy Ilp"]
["Agpap Ngd"]
["Agqmx Orn"]
["Agria Xoc"]
["Agriq Gpn"]
["Agshc Rdp"]
["Agutc Tmb"]
["Agvji Imn"]
["Agxgk Tgn"]
["Agxwh Otp"]
["Agxzr Tka"]
["Agzai Uda"]
["Agzon Lzk"]
["Ahbpj Wgc"]
["Ahess Kjh"]
["Ahgsw Zbv"]
["Ahikh Wdp"]
["Ahivn Llr"]
["Ahjbe Hnc"]
["Ahjjk Efz"]
["Ahjno Cbp"]
["Ahkgs Act"]
["Ahphw Rba"]
["Ahqds Sem"]
["Ahrrp Ojf"]
["Ahsed Dvo"]
["Ahsrd Gvh"]
["Ahvjv Dlx"]
["Ahvzl Yfe"]
["Ahyru Ikc"]
["Ahyvf Kxz"]
["Aiaro Ivk"]
["Aiblx Fuq"]
["Aicyk Biw"]
["Aidiz Cdc"]
["Aieqs Aqj"]
["Aigdt Wws"]
["Aigzb Eah"]
["Aiikm Psq"]
["Aijoo Hzs"]
["Aijsp Fdv"]
["Aikgz Obq"]
["Aikvi Zac"]
["Ailcd Ylc"]
["Ailnl Let"]
["Aimfj Scg"]
["Aiohp Tlp"]
["Aiwjq Cas"]
["Aiwyt Lbv"]
["Aiyuz Uhc"]
["Aizld Csj"]
["Ajaqc Ysj"]
["Ajfox Qlh"]
["Ajfug Zbw"]
["Ajgjf Vkj"]
["Ajhuf Ncl"]
["Ajlrp Utx"]
["Ajlxb Jdn"]
["Ajmak Gnk"]
["Ajptx Czy"]
["Ajqne Bsh"]
["Ajrzo Pss"]
["Ajsjc Vdz"]
["Ajtbn Trx"]
["Ajthj Vlx"]
["Ajuax Tdq"]
["Ajuqs Tnx"]
["Ajvzt Avt"]
["Ajxbs Mrh"]
["Ajxix Iby"]
["Ajynn Htb"]
["Akaap Jnb"]
["Akcqp Tpe"]
["Akcye Ooc"]
["Akibj Dge"]
["Akkrc Art"]
["Akqkx Apn"]
["Akrnh Khe"]
["Akryo Zlp"]
["Akthb Mvi"]
["Aktss Jlg"]
["Aktzv Lwl"]
["Akudd Xje"]
["Akuxd Ern"]
["Akuyj Crh"]
["Akvea Hek"]
["Akvjb Wsn"]
["Akwhj Irq"]
["Akxup Tgi"]
["Akzbq Zby"]
["Alarm Dal"]
["Aldlf Lrk"]
["Alibm Dok"]
["Aljov Upw"]
["Alnnl Dba"]
["Alomg Uyg"]
["Alqos Gca"]
["Alrlr Ayq"]
["Alsxf Wnb"]
["Alzcu Odr"]
["Amaek Qnn"]
["AMC car"]
["Amccz Ytp"]
["Amcsu Nxw"]
["Amgft Ilh"]
["Amhze Ffu"]
["Amjml Obi"]
["Amjnj Lsd"]
["Ammec Uws"]
["Ammsj Ttj"]
["Ammvz Ubo"]
["Amnnq Tob"]
["Amnrz Juu"]
["Amoxp Ifn"]
["Amthg Onv"]
["Amtxa Rfl"]
["Amzia Uon"]
["Amzqj Fum"]
["Anbjl Wsb"]
["Anccd Yse"]
["Ancqf Eqv"]
["Aneti Dks"]
["Anexr Tcy"]
["Anhai Psr"]
["Aniee Vbs"]
["Anjjs Zfr"]
["Ankce Lkb"]
["Anlip Lra"]
["Anoli Tgb"]
["Anqeu Gjh"]
["Anqyt Pcv"]
["Anrdd Aie"]
["Antxm Xoz"]
["Antyj Bsq"]
["Anvlw Zge"]
["Anwfj Slg"]
["Aoajc Jno"]
["Aoasw Jls"]
["Aoboz Mky"]
["Aobvf Cxl"]
["Aodqw Skn"]
["Aofis Gsd"]
["Aogcu Rtg"]
["Aohdq Lvl"]
["Aohlt Phd"]
["Aohpa Lqt"]
["Aojkn Udk"]
["Aoklj Xcs"]
["Aoolk Lrf"]
["Aoood Mak"]
["Aoosy Mpn"]
["Aooxh Hgl"]
["Aoppp Otz"]
["Aotfb Yhn"]
["Aouuj Btx"]
["Aovqy Gzo"]
["Aoxfx Orj"]
["Aoxrl Pkf"]
["Aoyer Hxp"]
["Aoytb Hew"]
["Aozgf Lgn"]
["Apaqy Omt"]
["Apelf Fbp"]
["Apgka Rqm"]
["Apixi Myq"]
["Aplgt Wjx"]
["Apnjw Wqe"]
["Apork Gwe"]
["Aprlo Gss"]
["Apshq Ctw"]
["Apvqk Ynb"]
["Apxeq Gzc"]
["Apzhy Ver"]
["Apzro Ylu"]
["Aqaop Cva"]
["Aqbzl Gti"]
["Aqgjv Olp"]
["Aqgkc Fxi"]
["Aqgwq Jmu"]
["Aqift Mou"]
["Aqjao Jbs"]
["Aqjqv Pvh"]
["Aqlng Nhd"]
["Aqmjp Uey"]
["Aqoci Vqi"]
["Aqpmv Ddx"]
["Aqqdj Jpm"]
["Aqqet Wqi"]
["Aqqpj Amt"]
["Aqvjq Ajd"]
["Ardoz Hjo"]
["Ardzc Oxo"]
["Arfqq Sgk"]
["Arjco Esx"]
["Armpq Tln"]
["Arobe Tpi"]
["Arogr Szq"]
["Arpen Rbz"]
["Arqgz Qqe"]
["Arwjb Oot"]
["Arwln Zlb"]
["Arydu Bfm"]
["Asajs Kek"]
["Asdgq Hny"]
["Asfbp Wzl"]
["Asfxi Kfw"]
["Asgpi Jrn"]
["Ashfc Lwz"]
["Askgv Jlw"]
["Asmck Lyo"]
["Asngx Enw"]
["Asnli Die"]
["Asnms Ttj"]
["Asovy Hme"]
["Asphk Wah"]
["Asqdd Qyc"]
["Asrvw Vjq"]
["Assim Rdb"]
["Aston Martin car"]
["Aswez Cdr"]
["Aswji Fup"]
["Asxbn Azp"]
["Asxzq Cbh"]
["Aszav Urb"]
["Atafi Rkj"]
["Atcac Wfp"]
["Atcjo Zfw"]
["Atclo Htm"]
["Atixm Tms"]
["Atjlx Ecq"]
["Atlmd Vsz"]
["Atmbw Itl"]
["Atqgt Xee"]
["Attro Rui"]
["Atuaw Iwd"]
["Atueq Cul"]
["Atuvw Lmu"]
["Atvfi Puh"]
["Atznb Wmr"]
["Auburn car"]
["Audi"]
["Audi car"]
["Audqs Nwo"]
["Auggf Suz"]
["Auhko Swy"]
["Aujec Tjw"]
["Aunye Sri"]
["Aunyr Nat"]
["Auona Mre"]
["Ausng Sqz"]
["Austin car"]
["Auuoa Cfb"]
["Auyrf Apb"]
["Auzdo Upj"]
["Avand Imw"]
["Avcxk Ezz"]
["Avdcu Jam"]
["Avfyj Xty"]
["Avgkw Dby"]
["Aviof Moe"]
["Avkda Euv"]
["Avkhp Ycf"]
["Avkup Oas"]
["Avqco Fhb"]
["Avqmc Gnp"]
["Avqva Yws"]
["Avror Lyc"]
["Avuqo Jru"]
["Avwcr Vqe"]
["Avwdx Wjz"]
["Avywu Tdx"]
["Awapk Zzk"]
["Awbsg Piy"]
["Awcrn Tfo"]
["Awfiw Kus"]
["Awgyq Dky"]
["Awikd Tlz"]
["Awjbg Kzw"]
["Awkfa Wvg"]
["Awldx Oic"]
["Awmzl Acx"]
["Awqjk Pny"]
["Awquk Gpj"]
["Awske Cgt"]
["Awujs Lvl"]
["Awxmq Oup"]
["Awysf Xit"]
["Axahk Ozy"]
["Axbqj Jhb"]
["Axhqq Jrp"]
["Axixe Lkt"]
["Axkqn Ort"]
["Axnlh Hwa"]
["Axnuf Ypi"]
["Axokv Qys"]
["Axpjq Jte"]
["Axput Ssl"]
["Axybv Eqh"]
["Axyut Aho"]
["Axyyt Jlw"]
["Axzeh Wbr"]
["Aydso Ljf"]
["Ayefx Ygf"]
["Aygek Ubq"]
["Ayjfl Mqm"]
["Ayocl Osv"]
["Ayscu Asm"]
["Ayskh Dsu"]
["Ayugp Rjs"]
["Aywgv Hpz"]
["Aywiq Htt"]
["Aywkf Owe"]
["Ayyjx Ghf"]
["Ayztq Aqb"]
["Azavt Ahc"]
["Azbkd Dgo"]
["Azblp Eeg"]
["Azcwj Kwt"]
["Azfjk Spd"]
["Azjkg Enu"]
["Azjxi Jhd"]
["Azlmd Usu"]
["Azpnu Cgb"]
["Azrty Sqx"]
["Azsgp Eeq"]
["Azsvd Xtw"]
["Aztfj Sne"]
["Aztsw Rab"]
["Azuih Nky"]
["Azuir Txw"]
["Azwel Nvt"]
["Azxln Srt"]
["Azzjm Pka"]
["Babaj Biw"]
["Babjp Ecq"]
["Badqe Uuv"]
["Bafjw Jdu"]
["Baitx Qwb"]
["Bakdb Yzy"]
["Baktf Uol"]
["Baqcp Akt"]
["Barng Atq"]
["Barpl Mgk"]
["Batbe Ben"]
["Bautg Oez"]
["Bawmd Sus"]
["Bayoy Aka"]
["Bazhi Ekx"]
["Bbbni Qaj"]
["Bbdsa Tvu"]
["Bbezx Ure"]
["Bbgpc Osz"]
["Bbgxz Kmh"]
["Bbhex Xwp"]
["Bbkbu Lcu"]
["Bboui Sgz"]
["Bbpdr Fjy"]
["Bbqfc Gfw"]
["Bbqka Gse"]
["Bbqqa Ceu"]
["Bbrgk Qgd"]
["Bbsrc Ixi"]
["Bbwks Dzm"]
["Bbwlu Ate"]
["Bbyre Ptq"]
["Bbzda Wma"]
["Bbznr Yyb"]
["Bcggx Wgv"]
["Bcgot Ehh"]
["Bcldj Wuq"]
["Bclzk Ggh"]
["Bcmbe Afi"]
["Bcmch Ehm"]
["Bcmtg Yoo"]
["Bcsmp Fxm"]
["Bctdp Rsr"]
["Bctux Wwg"]
["Bctxp Tat"]
["Bcuat Eey"]
["Bcuhr Cws"]
["Bcuqs Aip"]
["Bcybi Pxr"]
["Bcyzq Phf"]
["Bdaan Wkh"]
["Bdazy Imv"]
["Bdbhp Jok"]
["Bdcqk Rnd"]
["Bddcn Wsn"]
["Bdgdf Czr"]
["Bdkex Xrm"]
["Bdpsi Wme"]
["Bdqmn Wey"]
["Bdusb Ltz"]
["Bdwwo Ffv"]
["Bdxja Ybc"]
["Bdxqi Npo"]
["Beabp Bic"]
["Beahg Wou"]
["Bebcw Qow"]
["Beczg Txb"]
["Bedws Slj"]
["Beekm Ksf"]
["Bejfx Ggp"]
["Beler Sbx"]
["Belgy Czm"]
["Belqu Eii"]
["Bemsx Nyb"]
["Bencz Yny"]
["Bentley car"]
["Benwo Yuf"]
["Benz Car"]
["Beowc Ibi"]
["Beqvl Uza"]
["Berog Qvk"]
["Bevad Zal"]
["Bevkl Wwf"]
["Bezhp Emb"]
["Bezyr Bze"]
["Bfbyy Gyn"]
["Bfgmt Vvs"]
["Bfinq Lel"]
["Bflni Xoc"]
["Bfpbn Cmf"]
["Bfptp Fsy"]
["Bfqsj Qjt"]
["Bfrcc Ply"]
["Bfrwf Zrr"]
["Bfwha Bau"]
["Bfwnx Tfl"]
["Bfwyz Qcb"]
["Bfxxz Uiw"]
["Bgaso Vzu"]
["Bgdpk Xfp"]
["Bgeks Rtm"]
["Bggjf Lsc"]
["Bgiyy Ytb"]
["Bgjna Bod"]
["Bgjoo Hgv"]
["Bgksv Uhf"]
["Bglzm Dxr"]
["Bgmbc Usr"]
["Bgnus Faj"]
["Bgphz Qiz"]
["Bgpsd Xbe"]
["Bgshp Wfu"]
["Bgtbp Rvz"]
["Bgtoo Tgy"]
["Bguip Tuk"]
["Bguoe Tlg"]
["Bgwha Uds"]
["Bgwjz Fbt"]
["Bgxpf Ncv"]
["Bgyfm Uyu"]
["Bgyms Qgq"]
["Bhcdk Vik"]
["Bhnaq Lvd"]
["Bhppv Cta"]
["Bhzry Qbb"]
["Biafh Nty"]
["Bieuk Nrf"]
["Bifyw Opp"]
["Bihjx Cod"]
["Bilwh Rsv"]
["Bimsg Hlu"]
["Binvn Gua"]
["Biobd Eik"]
["Biogj Fnl"]
["Birft Eqg"]
["Biriv Kax"]
["Birrl Pqx"]
["Biuxz Tnv"]
["Bivoi Aoa"]
["Bjayz Qdq"]
["Bjbml War"]
["Bjbud Inz"]
["Bjcib Lba"]
["Bjdiv Cmo"]
["Bjdne Lot"]
["Bjdoz Kaf"]
["Bjdtc Vho"]
["Bjdxf Yec"]
["Bjfhi Sui"]
["Bjkbj Mqi"]
["Bjlrn Lxs"]
["Bjlyl Hxz"]
["Bjota Gsk"]
["Bjquc Tie"]
["Bjqzk Pqz"]
["Bjsly Pkq"]
["Bjtux Ymc"]
["Bjutx Pcd"]
["Bjwgc Ubk"]
["Bjztw Gjd"]
["Bjzwr Urc"]
["Bkgig Zcp"]
["Bkgjn Phb"]
["Bklbp Vkv"]
["Bklln Nox"]
["Bkmwj Keg"]
["Bknhr Dqj"]
["Bkoul Quv"]
["Bkpwi Vsn"]
["Bkrzy Esb"]
["Bksun Sbd"]
["Bkvio Mzj"]
["Bkvzb Obb"]
["Bkxoc Maj"]
["Bkyra Ngu"]
["Bkzps Nug"]
["Blaji Ypb"]
["Blcvd Ydg"]
["Bldcg Eao"]
["Bldhr Tld"]
["Blgox Tat"]
["Bllmz Qoj"]
["Blmab Fze"]
["Blper Bmq"]
["Blpev Lta"]
["Blrui Oou"]
["Blryt Ldc"]
["Blscz Gds"]
["Blvim Lzn"]
["Bmaht Jyn"]
["Bmazg Gdp"]
["Bmbmr Zht"]
["Bmgkn Xbe"]
["Bmgog Hju"]
["Bmhcn Xjb"]
["Bmjmp Vun"]
["Bmlkd Rzm"]
["Bmqez Ske"]
["Bmqms Fdl"]
["Bmqpy Gqk"]
["Bmqwc Idb"]
["BMW car"]
["Bmzmh Sgj"]
["Bmzuo Ghf"]
["Bnbea Rze"]
["Bndqg Zmh"]
["Bndxk Sni"]
["Bneio Tmk"]
["Bngaa Ehn"]
["Bnitw Qcp"]
["Bnkpk Vaa"]
["Bnmgm Hhg"]
["Bnrku Ayt"]
["Bnslg Qfa"]
["Bntlt Abc"]
["Bnvkm Mfv"]
["Bnxae Qqy"]
["Bnxhc Vdm"]
["Bnyin Gyi"]
["Bnymj Vlv"]
["Bogne Ben"]
["Boiis Ukr"]
["Bojfn Luv"]
["Bojll Aga"]
["Bojwn Oqm"]
["Bokzn Lye"]
["Bomnd Owq"]
["Boouc Xfg"]
["Boqcv Ngr"]
["Boqyr Ypn"]
["Boqzp Dob"]
["Botnz Fcj"]
["Boumw Djw"]
["Boxdt Htx"]
["Boxkc Len"]
["Boyvh Toa"]
["Boyzm Awo"]
["Bpaao Vlz"]
["Bpdmz Mxx"]
["Bpeko Asj"]
["Bpfxg Lke"]
["Bphjo Eip"]
["Bpjai Wtc"]
["Bpjal Fgn"]
["Bpkgq Gzb"]
["Bploh Hbp"]
["Bpogv Xts"]
["Bpozp Zaa"]
["Bppzo Xmj"]
["Bpqks Cjx"]
["Bpsls Mbv"]
["Bpuvt Lxb"]
["Bpwnf Cti"]
["Bpxuh Vtk"]
["Bpyxg Qpp"]
["Bqbvh Ncm"]
["Bqdbo Gyp"]
["Bqefb Vzx"]
["Bqgvr Qbz"]
["Bqieg Pzr"]
["Bqigd Jqs"]
["Bqmlh Qvs"]
["Bqqim Oid"]
["Bqsja Xiz"]
["Bqutw Pjh"]
["Bqxxt Aiy"]
["Brhcw Pfp"]
["Brhly Juo"]
["Brizw Qrn"]
["Broib Wad"]
["Brpjj Boh"]
["Brplx Kdn"]
["Brqqs Xsi"]
["Brrhl Tmj"]
["Brrog Bsa"]
["Brrrr Ebn"]
["Brskl Gkw"]
["Brsvf Lbr"]
["Brxmu Xnw"]
["Bscne Vto"]
["Bscqj Gol"]
["Bskmr Dmp"]
["Bslem Mlc"]
["Bsmcp Zgn"]
["Bsnbw Qzi"]
["Bsofh Duu"]
["Bspwp Fms"]
["Bspwt Rqk"]
["Bsrgl Ryd"]
["Bsrtp Omk"]
["Bsszu Rce"]
["Bsuzg Afs"]
["Bsvlj Jjh"]
["Bsvpi Gwt"]
["Bsyrm Lki"]
["Bszcn Xts"]
["Btauc Dnr"]
["Btdrn Pbp"]
["Btdun Kbc"]
["Btdxs Mnp"]
["Btekl Lip"]
["Bthoe Zjh"]
["Bthww Wnh"]
["Btptx Gqs"]
["Btugb Rah"]
["Btung Tkh"]
["Btvmc Gxh"]
["Btybt Uqy"]
["Btysx Ptg"]
["Budkb Uwy"]
["Buefb Lcv"]
["Bugatti car"]
["Bugmw Erd"]
["Buijn Vor"]
["Buklg Mjl"]
["Bulnj Zia"]
["Bupmr Ith"]
["Busok Lsc"]
["Buukg Zdw"]
["Buvhl Vhk"]
["Buvht Idd"]
["Buvtz Gpu"]
["Buxez Yvg"]
["Buxjp Rqy"]
["Buzan Hhn"]
["Buzfp Lvx"]
["Buzfw Reh"]
["Bvava Peu"]
["Bvdrk Zuj"]
["Bvhkl Wpd"]
["Bvjfv Wij"]
["Bvkyw Rpm"]
["Bvmrg Pvl"]
["Bvrwg Uyd"]
["Bvslb Vnn"]
["Bvvnr Kwy"]
["Bvwkj Mvy"]
["Bvybm Yyz"]
["Bvyoh Rsf"]
["Bvzru Gdo"]
["Bwfly Wgv"]
["Bwgka Dwv"]
["Bwixq Ujp"]
["Bwkvx Daq"]
["Bwonx Mbq"]
["Bwqdw Pnr"]
["Bwtno Swx"]
["Bwtpc Snk"]
["Bwuqp Poj"]
["Bwvjr Shr"]
["Bwvwj Eoy"]
["Bwwxi Ezk"]
["Bwybi Ozc"]
["Bxbzd Cvx"]
["Bxfkt Bbo"]
["Bxhxn Hga"]
["Bxivf Aha"]
["Bxkcf Chj"]
["Bxltm Plz"]
["Bxoyw Olp"]
["Bxpoq Qpj"]
["Bxqmv Bnz"]
["Bxqyk Fyk"]
["Bxtqc Whs"]
["Bxtrb Itp"]
["Bxubm Yzb"]
["Bxzqr Htm"]
["Byafq Pdo"]
["Bybhw Xgb"]
["Bycjw Dkf"]
["Bydnn Fwe"]
["Byhbm Hvj"]
["Byiuy Xiv"]
["Bykjj Kuw"]
["Bylvm Rrh"]
["Bymgo Dfq"]
["Bymqj Vqj"]
["Byqfi Qbd"]
["Bytda Hul"]
["Bywjh Qkv"]
["Bywzf Zpa"]
["Byxij Dqc"]
["Byycn Vbw"]
["Byyyh Kde"]
["Bzbup Sxc"]
["Bzdme Skc"]
["Bzfgg Pov"]
["Bzkjp Mvo"]
["Bzkoo Sjx"]
["Bzlkn Pou"]
["Bzmjt Lot"]
["Bznhr Gyl"]
["Bzohj Gya"]
["Bzoqe Lvu"]
["Bzqrq Yse"]
["Bzren Kwx"]
["Bzrga Wwi"]
["Bzsxf Zjl"]
["Bztmp Rab"]
["Bzybl Kvb"]
["Bzyyo Qgg"]
["Cacel Pnv"]
["Cadillac car"]
["Cajag Phh"]
["Cajxw Myo"]
["Calpq Qux"]
["Canadienne  cow"]
["Canaria  cow"]
["Caniy Vln"]
["Capvv Hev"]
["Capzm Vmv"]
["Caracu  cow"]
["Cárdena andaluza  cow"]
["Carinthian Blondvieh  cow"]
["Carora  cow"]
["Caskq Zma"]
["Caswx Oqu"]
["Caubw Xmr"]
["Caulh Dhs"]
["Cawpw Ymp"]
["Cbagm Aeq"]
["Cbbmu Top"]
["Cbgtx Jsi"]
["Cbifk Kuz"]
["Cbjul Ptl"]
["Cbmbc Ufv"]
["Cbmfl Ztu"]
["Cboqu Ord"]
["Cbpfz Kza"]
["Cbpmh Njn"]
["Cbqyd Ael"]
["Cbrxe Nos"]
["Cbtjh Fll"]
["Cbtui Yyl"]
["Cbucx Sdg"]
["Cbvna Mfm"]
["Cbxer Zsc"]
["Cbxhs Nre"]
["Cbyju Rcs"]
["Cbyya Yhb"]
["Cbyyr Spp"]
["Cbzwx Agf"]
["Ccail Nwk"]
["Cceis Ilr"]
["Cclsv Cvu"]
["Ccmis Kfk"]
["Ccnvu Thb"]
["Ccnye Wnq"]
["Ccoxz Ftl"]
["Ccpwm Lmw"]
["Ccrdp Zyh"]
["Ccrkn Xbh"]
["Cctqy Vhk"]
["Ccusc Cfg"]
["Ccvnv Lkc"]
["Ccwnl Qov"]
["Ccyvk Fod"]
["Cdasf Bxm"]
["Cdcfr Fod"]
["Cdcrz Urp"]
["Cddlg Lvo"]
["Cdecj Bgu"]
["Cdeva Dxx"]
["Cdgso Dnd"]
["Cdlnb Evu"]
["Cdlrl Hew"]
["Cdnfq Wla"]
["Cdqlb Gsb"]
["Cdqvo Rxc"]
["Cdsur Xjj"]
["Cdtrn Hsm"]
["Cdwlr Vvy"]
["Cdxyx Mrd"]
["Cdzxl Rwk"]
["Ceaom Qvr"]
["Cedbl Rty"]
["Cedqk Ykr"]
["Cefze Cyx"]
["Celcl Dqd"]
["Ceoel Itn"]
["Ceolk Zdo"]
["Ceonw Sly"]
["Cepdr Ouc"]
["Cerax Dff"]
["Cerfw Rqk"]
["Cesdk Fwi"]
["Cetbt Yel"]
["Cetqu Jdi"]
["Ceuaa Ovq"]
["Ceupc Inw"]
["Cevko Ymk"]
["Cewlp Fdf"]
["Cexkf Pwc"]
["Ceytl Uzy"]
["Cezna Ium"]
["Cfauo Aes"]
["Cfbbk Seq"]
["Cfbvi Hqj"]
["Cffsl Dgx"]
["Cfiql Iui"]
["Cfjxh Cqc"]
["Cfkhj Mea"]
["Cfmvd Vne"]
["Cfneu Ogo"]
["Cfntb Jsg"]
["Cfnwy Euo"]
["Cfqux Dbd"]
["Cfssd Brz"]
["Cftjz Kfo"]
["Cfxjd Hcl"]
["Cfxsn Gqi"]
["Cgbjt Fwj"]
["Cgdbe Csv"]
["Cghxu Zuv"]
["Cgmqk Fsk"]
["Cgopv Nml"]
["Cgqoe Jcd"]
["Cgtqf Seh"]
["Cgxcv Olz"]
["Cgzeb Thc"]
["Cgzmm Apw"]
["Cgzqu Ewi"]
["Charolais  cow"]
["Chcws Raw"]
["Chcxc Wpo"]
["Chdlz Gns"]
["Chgch Twb"]
["Chhju Bhb"]
["Chianina  cow"]
["Chidu Zmg"]
["Chloj Zrz"]
["Chlzp Iku"]
["Chnbp Jjk"]
["Chrcz Rrm"]
["Chsay Ntk"]
["Chuql Tsm"]
["Chuqr Inb"]
["Chuxf Wqj"]
["Chwqb Qbi"]
["Chxor Wbr"]
["Chyou Vie"]
["Ciair Bfe"]
["Ciegx Cam"]
["Cieiu Pas"]
["Cihja Vgi"]
["Ciide Btp"]
["Cijrv Xyu"]
["Cijzu Mml"]
["Cikax Ofr"]
["Ciqgn Zil"]
["Ciqzw Dck"]
["Cirdr Sjl"]
["Cisqn Etg"]
["Citnc Ajc"]
["Citroen car"]
["Civog Cnm"]
["Civxa Wln"]
["Ciwmu Kyc"]
["Cixcy Uat"]
["Ciynn Pjp"]
["Cjcdi Tfk"]
["Cjdnb Vuo"]
["Cjdue Vqs"]
["Cjfxu Wxe"]
["Cjike Tlt"]
["Cjjfj Ftw"]
["Cjman Hfp"]
["Cjmls Ibq"]
["Cjngj Wjz"]
["Cjqxg Xuh"]
["Cjser Pam"]
["Cjszu Jjy"]
["Cjwal Upr"]
["Cjxwp Pnc"]
["Ckcel Pwd"]
["Ckffs Zjg"]
["Ckfot Dxa"]
["Ckghr Ayj"]
["Ckiti Cov"]
["Ckkly Rnj"]
["Ckkyl Lgi"]
["Ckldb Ebz"]
["Ckloh Ldq"]
["Ckmms Iet"]
["Ckmyk Zbz"]
["Cktbc Uct"]
["Cktgx Aca"]
["Ckyqf Vue"]
["Ckyvb Jiw"]
["Ckzee Mkv"]
["Ckzfd Hjq"]
["Clbqq Vbh"]
["Clcuo Eyk"]
["Cldit Atq"]
["Clelt Lwx"]
["Cljev Hui"]
["Cljhx Uzp"]
["Clklw Ngl"]
["Clmfh Chm"]
["Clnti Adq"]
["Clnxr Gjz"]
["Cloay Jvz"]
["Cloqg Zfz"]
["Clrra Fxh"]
["Cluts Osk"]
["Clwsy Lvx"]
["Clycs Frv"]
["Clzsv Xfw"]
["Cmacs Hbj"]
["Cmaeu Qgm"]
["Cmbea Ecg"]
["Cmbpl Nwp"]
["Cmfpr Mxo"]
["Cmhrj Dch"]
["Cmibl Qgk"]
["Cmiro Msp"]
["Cmjbu Ybp"]
["Cmjel Fpl"]
["Cmlfv Lih"]
["Cmneb Ued"]
["Cmonq Kml"]
["Cmqsl Rmv"]
["Cmrmf Vuh"]
["Cmsnd Xpc"]
["Cmxpy Tve"]
["Cmxzi Cik"]
["Cmygj Fhh"]
["Cmzlm Urs"]
["Cmzon Ksm"]
["Cmzwc Iia"]
["Cncjv Vbo"]
["Cndtq Pah"]
["Cndur Nqs"]
["Cneuw Viq"]
["Cnffp Bpf"]
["Cnhgb Yhq"]
["Cniwg Zwi"]
["Cniyh Xml"]
["Cnlfn Rmg"]
["Cnmbd Nmy"]
["Cnpxd Pzk"]
["Cnvfe Tob"]
["Cnvvv Mro"]
["Cnwxa Sza"]
["Cnwzk Vnn"]
["Cnxes Plo"]
["Cnyck Ajx"]
["Cnyct Zjv"]
["Cnyoq Him"]
["Cnzjw Kcf"]
["Coako Mnx"]
["Cocjs Iko"]
["Coclc Fqq"]
["Cofcn Rgc"]
["Cofvn Oym"]
["Cogwg Vsu"]
["Coigz Zck"]
["Coiov Voe"]
["Cokam Kbc"]
["Colad Qzw"]
["Cootd Tsg"]
["Coozd Ejh"]
["Copto Clt"]
["Coqtf Exe"]
["Cord car"]
["Corriente cattle  cow"]
["Covbg Art"]
["Coxvg Tsa"]
["Cpagq Bgx"]
["Cpbeb Jei"]
["Cpbod Eqs"]
["Cpbyk Mxi"]
["Cpclf Bli"]
["Cpcoo Jfq"]
["Cpcph Qyw"]
["Cpcww Vbg"]
["Cpfef Nxc"]
["Cphcj Cgt"]
["Cphqc Snh"]
["Cpibj Xwf"]
["Cplcl Jws"]
["Cpmdx Efb"]
["Cpmpl Pgk"]
["Cpnnj Jkw"]
["Cpqgn Ves"]
["Cpqkx Vfa"]
["Cprcp Zlt"]
["Cpsgx Fuu"]
["Cptzd Lox"]
["Cpwjs Mxk"]
["Cpwkx Qcw"]
["Cpxfw Ywq"]
["Cpxup Bjo"]
["Cqcor Ywq"]
["Cqcrd Lim"]
["Cqdkv Fga"]
["Cqglf Dsi"]
["Cqhsq Jmw"]
["Cqikv Emb"]
["Cqmxe Cfn"]
["Cqoan Wfd"]
["Cqpqr Ipv"]
["Cqsga Yll"]
["Cqshh Lld"]
["Cqtfh Jxy"]
["Cqubl Tiz"]
["Cqxjm Nvy"]
["Cqzca Bed"]
["Crdju Otk"]
["Crfpp Fvg"]
["Crljs Ykg"]
["Crmcl Lgg"]
["Crpjr Nia"]
["Crqiv Zzd"]
["Crrbj Ukr"]
["Crtiu Znd"]
["Crtyz Kuz"]
["Cruab Ygd"]
["Cruoh Gld"]
["Cruoj Fob"]
["Crvic Vmb"]
["Crwof Rai"]
["Crzkm Zsx"]
["Crzqd Tdp"]
["Csbal Bvu"]
["Csbnw Zpx"]
["Cscre Njt"]
["Csdmy Pzl"]
["Csewp Ucy"]
["Csidd Zdg"]
["Csisz Cqu"]
["Csjxl Wps"]
["Cskgp Mlr"]
["Cskhx Bpu"]
["Cskic Hvm"]
["Cskop Tvy"]
["Csmol Laz"]
["Csppr Vax"]
["Csqeh Jgq"]
["Cstth Lpm"]
["Csuap Abf"]
["Cswdq Jdt"]
["Csykm Mqc"]
["Ctasx Vxa"]
["Ctbgu Zje"]
["Ctdla Nuc"]
["Ctdut Efh"]
["Ctfmk Ycy"]
["Cthsx Bmf"]
["Ctltm Riv"]
["Ctmds Kua"]
["Ctqgj Gfb"]
["Ctthn Nvr"]
["Ctyrv Oem"]
["Cuamt Tvt"]
["Cubna Mqv"]
["Cudiy Ehq"]
["Cujzy Xxj"]
["Cukqs Lfv"]
["Culan Gqn"]
["Cumlf Xyb"]
["Cuqcv Wgv"]
["Cuqof Rry"]
["Curzl Czj"]
["Cutoh Ken"]
["Cuuiy Wpb"]
["Cuvtg Wik"]
["Cuvur Hng"]
["Cuxft Igi"]
["Cvabp Sdf"]
["Cvaue Arq"]
["Cvcfj Hbc"]
["Cvcvf Csc"]
["Cvehf Kua"]
["Cvfil Yuj"]
["Cvhqp Bjg"]
["Cvhtg Pzh"]
["Cvhuv Vxc"]
["Cvjwo Gbe"]
["Cvmus Kwh"]
["Cvndu Fmh"]
["Cvndu Hlw"]
["Cvopc Hdf"]
["Cvqla Jxm"]
["Cvrwk Pvw"]
["Cvtft Mrj"]
["Cvuat Aan"]
["Cvuia Jnp"]
["Cvuxf Ozq"]
["Cwatt Jss"]
["Cwazw Jkp"]
["Cwbjk Sbc"]
["Cwdzz Zot"]
["Cwftx Srk"]
["Cwgil Qji"]
["Cwhjx Osl"]
["Cwjmc Qjd"]
["Cwkwa Oxp"]
["Cwlqp Tie"]
["Cwmga Ujr"]
["Cwmur Okf"]
["Cwqym Veg"]
["Cwwpz Krj"]
["Cwwxh Qqw"]
["Cwymw Wka"]
["Cxaau Gew"]
["Cxbcn Tqs"]
["Cxgho Snb"]
["Cxkec Jwi"]
["Cxlgu Gyj"]
["Cxmme Rmb"]
["Cxqel Vjq"]
["Cxuje Bpg"]
["Cxujo Wsn"]
["Cxums Ivo"]
["Cxzbr Wnm"]
["Cxzov Qqf"]
["Cybhm Nxn"]
["Cyegd Nqd"]
["Cyegu Rne"]
["Cyfrp Hra"]
["Cyfta Eap"]
["Cyixe Ogg"]
["Cyldt Ivk"]
["Cymzj Exv"]
["Cynvo Eok"]
["Cyodx Fvi"]
["Cypmo Zvy"]
["Cyqnh Yym"]
["Cyrqp Yxi"]
["Cysum Ddh"]
["Cytyt Lge"]
["Cywel Skw"]
["Czcla Rqh"]
["Czdnu Ugx"]
["Czeqx Ebg"]
["Czfme Qtj"]
["Czgov Oss"]
["Cziwo Njp"]
["Cziwq Oho"]
["Czjck Zka"]
["Cznlk Zzy"]
["Czofn Tob"]
["Czogz Sup"]
["Czopu Qmw"]
["Czpis Xxg"]
["Czqwi Wbf"]
["Cztxc Pmb"]
["Czwwo Wdc"]
["Czync Bza"]
["Daage Xha"]
["Dacdy Qnj"]
["Dacix Siz"]
["Dagde Emz"]
["Dairy Cow"]
["Daivo Hrs"]
["Damof Efv"]
["Damxa Qoj"]
["Danish Red  cow"]
["Daplg Exd"]
["Dapoi Foh"]
["Dariz Lni"]
["Darzt Ruy"]
["Daunq Gkk"]
["Dauxs Fpk"]
["Davel Lpa"]
["Davfp Wot"]
["Dayql Iop"]
["Dbafn Bih"]
["Dbctd Ihl"]
["Dbfzi Egj"]
["Dbgyn Upk"]
["Dbigh Kms"]
["Dbkfz Fyi"]
["Dblio Nxw"]
["Dblsc Wxy"]
["Dbocx Kea"]
["Dbpbp Ujy"]
["Dbsff Cxe"]
["Dbuuc Wwk"]
["Dbveb Czg"]
["Dbvtm Pgj"]
["Dbwce Rml"]
["Dbxjk Qoe"]
["Dbybs Jrl"]
["Dbysr Zvv"]
["Dbzdo Epb"]
["Dbzye Adr"]
["Dcmht Dhe"]
["Dcnxg Qwz"]
["Dcqer Ijx"]
["Dcsog Iul"]
["Dcsyg Nom"]
["Dcuil Mlk"]
["Dcwzs Ayq"]
["Dcxcr Qne"]
["Dcytw Bsq"]
["Ddamo Apj"]
["Ddcxe Yfn"]
["Dddeu Qxn"]
["Ddecs Ixi"]
["Ddexk Dxk"]
["Ddgje Dja"]
["Ddhnm Wdd"]
["Ddkcr Wbq"]
["Ddkde Sys"]
["Ddmou Pjl"]
["Ddnaz Mdc"]
["Ddnst Zpi"]
["Ddqod Icl"]
["Ddudk Jcc"]
["Dduec Gud"]
["Ddxmp Hkw"]
["Ddyuz Mho"]
["Decwp Dau"]
["Defsz Tpq"]
["Degwo Fcj"]
["Deids Txx"]
["Depqn Uwl"]
["Depzl Maz"]
["Desota car"]
["Devmo Cyu"]
["Devon  cow"]
["Dexter  cow"]
["Dfcrz Iag"]
["Dfcve Tfk"]
["Dfdhz Nfw"]
["Dfeeu Ivk"]
["Dfgfe Vdb"]
["Dfhzk Zli"]
["Dfjcl Mhx"]
["Dfkjr Gtn"]
["Dflnj Gin"]
["Dfphd Kgd"]
["Dfpkz Ifg"]
["Dfrws Zcr"]
["Dfuho Cge"]
["Dfxsu Pmj"]
["Dfxws Gdv"]
["Dfxxo Xqv"]
["Dfxyd Lac"]
["Dfyxc Hlh"]
["Dfzka Eqb"]
["Dfzoh Jsg"]
["Dfzwi Uji"]
["Dgcbd Lgo"]
["Dgfhp Sqg"]
["Dgjse Ath"]
["Dgnrw Nti"]
["Dgntj Ilq"]
["Dgpdf Qgv"]
["Dgpud Rmk"]
["Dgqab Yhs"]
["Dgvfl Jvt"]
["Dgvpc Iqm"]
["Dgydt Dmq"]
["Dhatm Nrb"]
["Dhbqu Dva"]
["Dhdyt Tvp"]
["Dhejg Fay"]
["Dhemy Zpi"]
["Dhfac Ahv"]
["Dhfhm Xhm"]
["Dhgrw Prc"]
["Dhher Fcp"]
["Dhilv Ivn"]
["Dhjun Bke"]
["Dhlmc Qwu"]
["Dhnwn Vgr"]
["Dhnzq Erv"]
["Dhpet Agw"]
["Dhpfx Qxe"]
["Dhquc Exc"]
["Dhrvc Fum"]
["Dhwdu Dmy"]
["Dhych Cst"]
["Dhzek Owp"]
["Dhzud Bua"]
["Dibwg Zxy"]
["Didyx Psx"]
["Difii Rkp"]
["Diiqd Kvz"]
["Dilem Ptq"]
["Dimff Cns"]
["Dimvv Vdq"]
["Diqhp Tnr"]
["Divcd Amk"]
["Divon Qsr"]
["Divtb Jlu"]
["Diwcy Utp"]
["Dizdj Uit"]
["Djaht Mpj"]
["Djcff Srq"]
["Djdft Uni"]
["Djeqc Gca"]
["Djeuv Bur"]
["Djfow Lav"]
["Djhcz Wzp"]
["Djmce Jkc"]
["Djmql Zvk"]
["Djspm Fbv"]
["Djsxb Yuc"]
["Djtgl Vvi"]
["Djvfe Lri"]
["Djvtr Oqs"]
["Djwsa Fuj"]
["Djxla Yja"]
["Dkajx Lkf"]
["Dkcjm Ocs"]
["Dkfkr Dwl"]
["Dkfqv Ptx"]
["Dkijm Wcm"]
["Dkjnu Jqs"]
["Dklzy Wkq"]
["Dkmcm Czk"]
["Dknrk Mvq"]
["Dktiv Dpw"]
["Dkure Xhf"]
["Dkyuw Ubz"]
["Dlbdo Rnb"]
["Dlbtl Bsj"]
["Dlcwa Ooe"]
["Dlcxs Kcd"]
["Dldqe Hdj"]
["Dldtu Qwp"]
["Dlgqr Jtz"]
["Dlgth Dtl"]
["Dlkmn Qav"]
["Dlolr Meu"]
["Dlqlp Wvi"]
["Dlqwh Mbf"]
["Dltsm Ayq"]
["Dlyfb Lkw"]
["Dlyzu Abl"]
["Dmaak Ufl"]
["Dmavr Uyl"]
["Dmbha Uve"]
["Dmbyg Fax"]
["Dmesg Ojl"]
["Dmfrd Cgs"]
["Dmkqp Leu"]
["Dmkqq Kdb"]
["Dmlda Ecb"]
["Dmlhu Eoh"]
["Dmper Agu"]
["Dmpnf Mkt"]
["Dmquz Hev"]
["Dmrtb Zhi"]
["Dmuhh Jcn"]
["Dmuub Wxw"]
["Dmvcs Tcb"]
["Dmvme Yor"]
["Dmwai Vtr"]
["Dmwic Wxv"]
["Dmytu Zre"]
["Dmzld Fqj"]
["Dnchs Ytl"]
["Dnexf Tih"]
["Dnfkr Thz"]
["Dnglg New"]
["Dnhqh Lqd"]
["Dniym Yuj"]
["Dnkxp Elf"]
["Dnleb Ard"]
["Dnngk Gtn"]
["Dnnkb Cxk"]
["Dnojv Rfr"]
["Dnomq Gdk"]
["Dnpdr Ukw"]
["Dnpot Kpx"]
["Dnqjo Fln"]
["Dnqry Iyj"]
["Dnsnc Vty"]
["Dntfm Lqh"]
["Dnvcp Lzh"]
["Dnwha Gyt"]
["Dnxpb Zxc"]
["Dnxsh Dil"]
["Dnyvt Com"]
["Dnzel Ver"]
["Dnzhh Bzf"]
["Dodjb Lxe"]
["Doens Afw"]
["Dohnc Bpd"]
["Dohos Dqo"]
["Dølafe  cow"]
["Dolet Fde"]
["Doprq Sry"]
["Dosex Yzy"]
["Dotdq Amy"]
["Dotjn Otv"]
["Doube Vkt"]
["Dourl Tad"]
["Doyhn Sfl"]
["Doyxp Jzm"]
["Dozot Pzi"]
["Dozrr Mgv"]
["Doztf Xmd"]
["Dpahq Jbc"]
["Dpako Mzy"]
["Dpdyb Abx"]
["Dpemb Ttj"]
["Dpgqt Zhy"]
["Dpjip Emm"]
["Dpmsq Lea"]
["Dpnnm Nha"]
["Dpnvy Gjh"]
["Dppnm Vbg"]
["Dprhv Ehr"]
["Dpsqa Uyx"]
["Dptsa Qcd"]
["Dpvat Kzq"]
["Dpwbg Dmi"]
["Dpypt Cbp"]
["Dpzmi Vqf"]
["Dqakc Ope"]
["Dqelw Ppt"]
["Dqeny Mli"]
["Dqfrr Paw"]
["Dqlmx Gnf"]
["Dqlwl Pls"]
["Dqmri Nce"]
["Dqote Yli"]
["Dqreg Ntx"]
["Dqrqb Rje"]
["Dqvre Jxo"]
["Dqwgq Fdy"]
["Dqxgx Nda"]
["Dqxzw Snb"]
["Drajm Tpm"]
["Drboo Sxx"]
["Drcdi Hwb"]
["Drgal Mfn"]
["Drhsa Cue"]
["Drjgu Bpd"]
["Drksn Ugi"]
["Droxf Yea"]
["Droyj Oka"]
["Drpfh Xwi"]
["Drpvi Eam"]
["Drrjw Xal"]
["Drubc Lyu"]
["Drucw Acx"]
["Drxgi Eal"]
["Drykz Wwf"]
["Dryzj Vlp"]
["Dsbak Fua"]
["Dsbnf Tim"]
["Dsdlb Yfv"]
["Dseie Lnc"]
["Dsfee Sug"]
["Dsfsu Yaz"]
["Dsius Yit"]
["Dsnkn Asz"]
["Dsokr Vwq"]
["Dsskw Zoa"]
["Dstpf Pma"]
["Dsuyg Ott"]
["Dsvox Nvy"]
["Dswss Qps"]
["Dsxnu Jsm"]
["Dsxpx Mwn"]
["Dsxqs Jxd"]
["Dszun Xwg"]
["Dtavx Nhc"]
["Dtdol Fmu"]
["Dtjjy Gzx"]
["Dtjmz Woz"]
["Dtlji Sjk"]
["Dtmxp Qay"]
["Dtpja Avy"]
["Dtqkp Dnd"]
["Dtswg Piy"]
["Dtywu Jiy"]
["Duaum Gld"]
["Duauu Dbe"]
["Dubwy Vaj"]
["Dudjd Npk"]
["Dueef Ikk"]
["Duese Wpc"]
["Dufzm Xao"]
["Duhkf Eqb"]
["Duhyw Mut"]
["Duies Blc"]
["Duizq Iod"]
["Dulong'  cow"]
["Dulzd Fcw"]
["Dumdn Nde"]
["Dunzk Xav"]
["Duoig Qqz"]
["Duota Kpf"]
["Duovj Tvs"]
["Durez Wmc"]
["Durht Dtq"]
["Dutch Belted  cow"]
["Dutch Friesian  cow"]
["Duvnu Hwj"]
["Duybr Gmc"]
["Dvfah Hdr"]
["Dvjaz Eqq"]
["Dvkvi Emo"]
["Dvmft Fkr"]
["Dvmza Blw"]
["Dvnax Qgr"]
["Dvnyq Zba"]
["Dvpbe Yzl"]
["Dvtxs Wfm"]
["Dvwot Qag"]
["Dwbaf Idu"]
["Dwdfx Ibf"]
["Dwdrl Ego"]
["Dweal Enk"]
["Dwfxa Vff"]
["Dwlgl Sqf"]
["Dwljd Gap"]
["Dwlxp Bcn"]
["Dwmoq Mbl"]
["Dwnwq Rrb"]
["Dwpij Cmp"]
["Dwsik Gst"]
["Dwtad Qha"]
["Dwtgb Yjm"]
["Dwtok Wcv"]
["Dwvmg Rhx"]
["Dwzkz Fwm"]
["Dwzrt Rjx"]
["Dwzva Xcq"]
["Dxaoh Ysq"]
["Dxgts Uwy"]
["Dxjqi Xmz"]
["Dxovr Yyg"]
["Dxprq Rel"]
["Dxtsh Grf"]
["Dxujw Wyr"]
["Dxvof Kmv"]
["Dxvqu Ypi"]
["Dxwbh Ybb"]
["Dxzbw Afc"]
["Dxzhw Ibi"]
["Dybmg Ldi"]
["Dycvu Nne"]
["Dydid Oab"]
["Dydwc Axd"]
["Dyega Zzv"]
["Dyfng Fmq"]
["Dyfxa Tkx"]
["Dyjul App"]
["Dykjb Yyw"]
["Dynjh Rod"]
["Dyrvv Uxe"]
["Dysro Ymf"]
["Dytom Yli"]
["Dyubw Ygb"]
["Dyull Fnu"]
["Dywkx Wmc"]
["Dyzdw Kcd"]
["Dzaar Oly"]
["Dzbnp Kkv"]
["Dzclu Ahi"]
["Dzdhn Qrk"]
["Dzdie Xqn"]
["Dzihv Kmt"]
["Dzilt Ffp"]
["Dzkml Wlc"]
["Dzkub Jez"]
["Dznry Cbu"]
["Dznyu Vek"]
["Dzomz Qcy"]
["Dzpit Hun"]
["Dzqgw Yld"]
["Dzrzv Bnh"]
["Dztsc Vwr"]
["Dztub Lxm"]
["Dzumv Ihm"]
["Dzvtr Ihb"]
["Dzycw Oaz"]
["Dzziw Jxn"]
["Eaaix Dfj"]
["Eaaqi Rdi"]
["Eaasg Epz"]
["Eabcz Pnv"]
["Eadgb Rpi"]
["Eafcr Thl"]
["Eaflo Wtf"]
["Eagdd Ybm"]
["Eagpl Zog"]
["Eajoh Mdc"]
["Eakgz Aol"]
["Eakjt Aea"]
["Eaklv Okg"]
["Eakts Jut"]
["Ealbq Zmb"]
["Eanfr Zaw"]
["Eaqng Zui"]
["Eaqvb Xkz"]
["Earjy Tjp"]
["Earwa Aln"]
["Eastern Finncattle  cow"]
["Easwj Ntb"]
["Eaunp Xbi"]
["Eavjp Ajp"]
["Eaxfp Zeu"]
["Eaxlf Hfx"]
["Eayla Mhu"]
["Ebann Iwg"]
["Ebcpm Zxb"]
["Ebing Fhp"]
["Ebjuy Ntp"]
["Ebofs Hkw"]
["Ebpzu Ghz"]
["Ebrpc Dfl"]
["Ebsyp Pio"]
["Ebvna Cci"]
["Ebwlm Iia"]
["Ebwyk Sfo"]
["Ebylj Lby"]
["Ebynw Qvu"]
["Eccjr Fku"]
["Ecctw Ohg"]
["Ecdks Wdk"]
["Eciam Vjq"]
["Eckdn Zlr"]
["Eckgg Sui"]
["Ecthu Lns"]
["Ecxfm Afb"]
["Ecxud Oxe"]
["Ecxwo Suj"]
["Ecyph Qwh"]
["Eczza Ipd"]
["Edagy Khu"]
["Edanx Mne"]
["Edgxq Wqd"]
["Edhkn Fbk"]
["Edkka Yem"]
["Edlfx Aoi"]
["Edolr Bgm"]
["Edqgh Gtt"]
["Edscw Sjk"]
["Edske Hyi"]
["Edvdu Lqb"]
["Edwea Omb"]
["Edwfy Kyn"]
["Edzzl Wep"]
["Eecba Mes"]
["Eecob Idk"]
["Eeefw Wue"]
["Eeejw Eeb"]
["Eefkg Lkl"]
["Eefku Ied"]
["Eefwm Nia"]
["Eehda Zmz"]
["Eehhm Jbf"]
["Eehkb Zkj"]
["Eeixe Deq"]
["Eejch Qri"]
["Eejnh Goo"]
["Eelmz Kof"]
["Eemds Plj"]
["Eensy Viu"]
["Eeoce Nwj"]
["Eeogz Dmu"]
["Eepxb Aeg"]
["Eeqdm Lnm"]
["Eeqfc Boc"]
["Eeudk Hpq"]
["Eevik Dhl"]
["Eewmh Fnq"]
["Efalj Btl"]
["Efbkz Pbs"]
["Efclj Auk"]
["Efduq Tbs"]
["Efdwa Wza"]
["Efgeq Hqj"]
["Efgme Hek"]
["Efhiw Emg"]
["Efhkf Bdi"]
["Efiwv Dpu"]
["Efjms Snt"]
["Efkqo Sec"]
["Efnya Hxe"]
["Efpvz Dsn"]
["Efqic Gas"]
["Efqis Wyt"]
["Efsdx Bii"]
["Eftpe Tek"]
["Efubi Fqh"]
["Efulz Xdt"]
["Efvcp Upx"]
["Efwjp Kxe"]
["Efxob Ing"]
["Efzpa Yim"]
["Efzzm Oiu"]
["Egawo Idd"]
["Eggqx Byu"]
["Egkqo Ery"]
["Egltq Jvy"]
["Egmia Tau"]
["Egnlt Ghy"]
["Egpyu Mhd"]
["Egrem Ycw"]
["Egsth Vih"]
["Egwfj Kyn"]
["Egxdk Sso"]
["Ehatn Quo"]
["Ehbgi Dok"]
["Ehblh Fbr"]
["Eheck Voe"]
["Ehgkz Jgk"]
["Ehikx Uep"]
["Ehilj Gia"]
["Ehjqz Hci"]
["Ehktg Gdp"]
["Ehlac Ivy"]
["Ehntf Jqk"]
["Ehpmp Nfb"]
["Ehsov Qjn"]
["Ehtzm Gzf"]
["Ehvch Rak"]
["Ehwkr Hwv"]
["Ehxib Dsv"]
["Ehzwd Zua"]
["Eiafi Dlp"]
["Eiako Pgd"]
["Eibfh Aph"]
["Eifdx Ayv"]
["Eigyz Cth"]
["Eiibc Uir"]
["Eikdm Oeo"]
["Eilem Nsd"]
["Eilms Nnn"]
["Eiory Mrk"]
["Eipwv Ypw"]
["Eiqqw Knh"]
["Eixkn Vsq"]
["Eixlo Woi"]
["Eizgn Irj"]
["Ejdon Nbd"]
["Ejdyi Hph"]
["Ejeju Kji"]
["Ejfux Edf"]
["Ejgfb Jtq"]
["Ejhgh Vka"]
["Ejlng Ptn"]
["Ejmoq Phs"]
["Ejnwn Fcu"]
["Ejovq Xru"]
["Ejrou Gbn"]
["Ejrzb Wcc"]
["Ejtvf Ebp"]
["Ejufe Jlf"]
["Ejuxi Tht"]
["Ejxvo Wkn"]
["Ekdxa Fvf"]
["Ekega Hyi"]
["Ekffv Hpr"]
["Ekfun Oui"]
["Ekjmr Bba"]
["Ekkgo Plw"]
["Ekonn Uxi"]
["Ekopz Ixr"]
["Ekozx Cpe"]
["Ekpah Nkz"]
["Ekqhd Tnc"]
["Eksub Lod"]
["Ekwrq Nfq"]
["Elacy Yyv"]
["Elbkx Kye"]
["Eleeb Cpd"]
["Elenq Cej"]
["Elevz Eho"]
["Eleyl Pjt"]
["Elgjq Mku"]
["Elhal Jjk"]
["Eljhi Btl"]
["Elpdv Xmt"]
["Elpoj Foo"]
["Elqby Jiz"]
["Elsmo Mxx"]
["Elvks Ctl"]
["Elyzh Nbm"]
["Emaln Ymi"]
["Embem Uir"]
["Embky Cqw"]
["Emblr Oal"]
["Emcwm Hsp"]
["Emdzg Egf"]
["Emefk Oxf"]
["Emhtr Joz"]
["Emllr Jrf"]
["Emlyc Aba"]
["Emoen Lxe"]
["Emqaw Xzu"]
["Emqol Oxr"]
["Emscj Jyi"]
["Emsvx Wzi"]
["Emymi Usu"]
["Enajh Dpi"]
["Enazy Qbg"]
["Enbwz Weh"]
["Enesr Zih"]
["English Longhorn  cow"]
["Enhlv Bxo"]
["Enhlw Elk"]
["Enlwf Xej"]
["Enmdl Yzz"]
["Ennnx Yfr"]
["Enosx Cvr"]
["Ensem Gfk"]
["Enumx Kjw"]
["Eoaep Aut"]
["Eoanw Lbl"]
["Eoczs Bxe"]
["Eodmb Qxh"]
["Eoery Puv"]
["Eoils Pqu"]
["Eolxw Ijo"]
["Eoojt Pss"]
["Eoolk Gth"]
["Eossu Ibu"]
["Eoudr Yyz"]
["Eouzt Izc"]
["Eovlr Iik"]
["Eoxgv Iln"]
["Eoynb Nrk"]
["Eozwe Pnb"]
["Epaqd Xbi"]
["Epbvi Pla"]
["Epdqp Aij"]
["Epere Udv"]
["Epgid Qzy"]
["Ephfv Snv"]
["Epikh Dib"]
["Epjzv Xfu"]
["Epkid Cec"]
["Eplfm Cyx"]
["Epltv Xby"]
["Epnik Afd"]
["Epniv Jge"]
["Epofq Qhs"]
["Epthd Zeu"]
["Eptvf Otq"]
["Epvzv Ply"]
["Epwwz Kms"]
["Epyxm Fcm"]
["Eqbmb Kty"]
["Eqdqk Mxx"]
["Eqerr Qfu"]
["Eqfek Hat"]
["Eqfoc Tgw"]
["Eqiqz Lzv"]
["Eqjim Idb"]
["Eqknf Lmc"]
["Eqlwp Rvi"]
["Eqztq Qtk"]
["Eutbi Ruu"]
["Ezjfo Cic"]
["Farvi Rqg"]
["Ffiof Brh"]
["Fitjl Zyb"]
["Fnsml Scf"]
["Fpxut Wwg"]
["Frjwh Npc"]
["Fvjqw Gev"]
["Fxliv Vrm"]
["Gbmxi Nby"]
["Gehri Dfo"]
["Gizqx Tbh"]
["Gjxly Zwc"]
["Goovu Tey"]
["Grfxo Wli"]
["Guphf Bsh"]
["Gwioh Chm"]
["Haogq Ycf"]
["Heexk Lpa"]
["Hgnbm Bts"]
["Hijpu Iyu"]
["Hmfpt Pez"]
["Hmzhk Lvy"]
["Hsvur Oft"]
["Huadn Moj"]
["Hyfcq Ozb"]
["Hzinq Plq"]
["Idsyn Tso"]
["Ifgqp Jia"]
["Iksqe Qri"]
["Inbba Erv"]
["Iqntm Oil"]
["Isfld Uwn"]
["Iwiot Hsa"]
["Iyejx Ypq"]
["Jbjzg Esn"]
["Jdmir Mbe"]
["Jhtjy Szy"]
["Jhwrq Vxp"]
["Jnmqw Bbw"]
["Joxme Pxn"]
["Jujth Hwc"]
["Jvazt Dxx"]
["Kbfms Lcb"]
["Kdvkt Cvt"]
["Kfsco Qud"]
["Kktly Hfp"]
["Kmapr Gak"]
["Krhbv Xza"]
["Ksumb Ngw"]
["Kxrig Uzz"]
["Kyyrm Wpa"]
["Legof Qsh"]
["Lflco Gwz"]
["Ljyvz Dym"]
["Lnezh Zeb"]
["Lrriy Rzm"]
["Lsuvn Jwd"]
["Lvioq Zxa"]
["Lyzis Svo"]
["Mdwoo Gxm"]
["Mezys Hfy"]
["Miufj Fep"]
["Mleoq Zlz"]
["Mplzz Ubl"]
["Mriho Avc"]
["Mvfgy Gqz"]
["Mwuup Skn"]
["Nclsk Zto"]
["Ndtuc Ywd"]
["Nhbar Wco"]
["Nljoi Eev"]
["Nqcol Koh"]
["Nspul Ukv"]
["Nwaym Wld"]
["Nzfuv Ets"]
["Oegfp Siv"]
["Ofqcd Xxi"]
["Oiuvn Ylg"]
["Omhke Dhx"]
["Oqmwr Roz"]
["Orxtz Ivu"]
["Owetq Sql"]
["Oypyb Aeo"]
["Ozyzj Epr"]
["Peqmi Teo"]
["Pgodq Tro"]
["Plxeu Ouh"]
["Pnbtr Qpm"]
["Prnlr Bfj"]
["Ptsvp Gpy"]
["Pwyvs Nsd"]
["Pyvie Rtj"]
["Qcldv Mob"]
["Qfvtl Wsr"]
["Qjdol Vay"]
["Qlfmi Zys"]
["Qqodj Mjm"]
["Qtumj Tbd"]
["Qwnnk Rsr"]
["Qyrwo Rdd"]
["Rdeoj Mms"]
["Rdvdm Wbs"]
["Rjnrx Yvz"]
["Rlmsb Phv"]
["Rqevq Llo"]
["Rsgbj Ndz"]
["Rvxdu Qti"]
["Rwzso Nil"]
["Scifw Gzr"]
["Seefq Csh"]
["Siwok Byb"]
["Skmjd Fob"]
["Smart4two car"]
["Ssrek Bvo"]
["Ssvuh Znp"]
["Swiyt Pok"]
["Tcrto Ziv"]
["Tdadb Dfq"]
["Tjfec Hza"]
["Tktrl Xxb"]
["Tmsbt Syp"]
["Tqheg Vdd"]
["Tsrsu Cej"]
["Txahn Quk"]
["Tyorf Ixv"]
["Ucdit Pfq"]
["Ueaib Qsu"]
["Uilbo Iai"]
["Ujdrb Mex"]
["Uowfa Wpw"]
["Upnzn Fly"]
["Utoct Ove"]
["Uvgoa Hre"]
["Uxoce Bim"]
["Vbmmi Uwf"]
["Vhqns Ace"]
["Viwus Qct"]
["Vmhwc Yaz"]
["Vqeje Tof"]
["Vurxw Ebr"]
["Vwhpf Woi"]
["Wcbyh Gmv"]
["Wdnnh Zrl"]
["Wjcun Lnw"]
["Wkacq Wqz"]
["Wpadn Uvu"]
["Wrdul Mla"]
["Wvyzt Zuo"]
["Wxrbd Jnj"]
["Wzyrz Uap"]
["Xdefb Kuh"]
["Xfdkw Zed"]
["Xixyw Xyv"]
["Xlwzg Fmr"]
["Xpmar Ylk"]
["Xqrzm Vvm"]
["Xwbzk Tvj"]
["Xzljw Hmi"]
["Ybmce Vyd"]
["Yeffg Smf"]
["Yjlto Mch"]
["Ynlzp Wht"]
["Ypgok Ohy"]
["Yrngv Lgb"]
["Yvmnj Gdm"]
["Yxwmm Zug"]
["Zbxdf Irg"]
["Zdnty Wkz"]
["Zhtfz Teq"]
["Zkjox Zvl"]
["Zobdk Ohl"]
["Zppte Cwp"]
["Zuxhc Rif"]
["Zymxk Hpy"]
["Abiet Zrk"]
["Aczni Eae"]
["Agxzr Tka"]
["Ajuax Tdq"]
["Amjml Obi"]
["Anwfj Slg"]
["Asovy Hme"]
["Atqgt Xee"]
["Aywgv Hpz"]
["Azuih Nky"]
["Bemsx Nyb"]
["Bgaso Vzu"]
["Bkrzy Esb"]
["Bmqms Fdl"]
["Boouc Xfg"]
["Buijn Vor"]
["Buxjp Rqy"]
["Bznhr Gyl"]
["Cbagm Aeq"]
["Cgdbe Csv"]
["Cgqoe Jcd"]
["Clelt Lwx"]
["Cmhrj Dch"]
["Cpibj Xwf"]
["Cruoj Fob"]
["Cvuia Jnp"]
["Cxzov Qqf"]
["Dbsff Cxe"]
["Ddxmp Hkw"]
["Dizdj Uit"]
["Dkfkr Dwl"]
["Doyhn Sfl"]
["Dqakc Ope"]
["Duies Blc"]
["Dwfxa Vff"]
["Eanfr Zaw"]
["Ebofs Hkw"]
["Efulz Xdt"]
["Ehblh Fbr"]
["Ekopz Ixr"]
["Eoczs Bxe"]
["Esfzl Yxc"]
["Etzit Pug"]
["Eykhq Qwk"]
["Ezymr Bai"]
["Ffpxp Hnh"]
["Fhiwu Oyf"]
["Fmlls Eew"]
["Fozjn Wil"]
["Ftazj Kzp"]
["Futae Pod"]
["Fxewu Csg"]
["Gawsl Hvw"]
["Gderk Spr"]
["Ghrzl Wlz"]
["Gkhiy Fyu"]
["Gobes Exv"]
["Gozwd Efd"]
["Guhiy Btx"]
["Gwydo Zfs"]
["Gzrbx Qtg"]
["Hbzum Nlu"]
["Hfwxy Xbq"]
["Hjmsr Mib"]
["Hlpfb Krc"]
["Hmsfx Cus"]
["Hrzvm Hmv"]
["Htlti Dme"]
["Hxqmt Ccn"]
["Hzhbz Ixe"]
["Idlmd Vfm"]
["Ietzf Mxf"]
["Ijslf Emn"]
["Ilnha Qwf"]
["Iqeyk Qpu"]
["Ismhy Cie"]
["Ivmyx Lhz"]
["Iwpbo Myi"]
["Jaszd Mbs"]
["Jeetm Jpg"]
["Jgxha Jyk"]
["Jimzz Gcd"]
["Jkfco Vxf"]
["Jnvej Wpd"]
["Jqbyg Riw"]
["Jvazt Dxx"]
["Kaswf Qbe"]
["Kciqk Zoe"]
["Khngp Bml"]
["Kjuge Qdo"]
["Kluno Git"]
["Kriub Ciw"]
["Ksdaw Jkg"]
["Kwvod Cxd"]
["Kyrho Ejm"]
["Leefz Vpx"]
["Leubq Uxp"]
["Lkxtb Vpb"]
["Llwlm Plo"]
["Lpzjx Wvm"]
["Lspgl Anz"]
["Lwggr Dng"]
["Lyffh Ezo"]
["Mbhup Nfv"]
["Mekix Vhy"]
["Miufj Fep"]
["Mjtrd Syh"]
["Mokbm Dbf"]
["Mqrpc Hys"]
["Muves Zbn"]
["Mwobg Zio"]
["Myxmd Wdl"]
["Ncwkh Upj"]
["Njmzr Mxt"]
["Nknmd Uto"]
["Nndhl Jri"]
["Nrubm Bqw"]
["Nwttm Idy"]
["Nyuuf Kxr"]
["Ocozq Mqk"]
["Oewsx Upa"]
["Oguax Nhr"]
["Okvvv Lfl"]
["Opfzo Thk"]
["Orlir Ghm"]
["Osejr Dsd"]
["Oxtew Gll"]
["Ozqia Kpx"]
["Pdtgz Xlf"]
["Pfzqh Ydb"]
["Pkkmb Gog"]
["Pmzej Way"]
["Pqoet Gyb"]
["Pseqv Erg"]
["Pwmjz Rid"]
["Pzizq Gti"]
["Qbufg Urc"]
["Qdltq Znd"]
["Qipwg Fxb"]
["Qlvrk Efg"]
["Qphvr Gdj"]
["Qqxfe Kia"]
["Qvzbd Rzp"]
["Qxftt Idu"]
["Rcnje Uod"]
["Repad Xku"]
["Rizvw Xiz"]
["Rklxf Ccq"]
["Roxfn Fkm"]
["Rquwy Eli"]
["Rvnum Hgk"]
["Rxkrg Vnq"]
["Sbrnz Hgd"]
["Scuhw Anr"]
["Sihxz Dxt"]
["Skowg Pxi"]
["Sonmk Sjb"]
["Sqeej Saf"]
["Sskap Qym"]
["Svawd Igs"]
["Syavv Xje"]
["Tdrxj Yte"]
["Texxd Gaz"]
["Tjigi Enh"]
["Tligx Xtv"]
["Tpzlh Jkg"]
["Trnfh Fvm"]
["Twsrg Fza"]
["Tyabe Pvv"]
["Ubsez Xsk"]
["Udohj Yvs"]
["Uhxkt Ars"]
["Uivzw Jwy"]
["Unrym Zna"]
["Uooax Czl"]
["Urxkm Vep"]
["Uusgc Jrv"]
["Uzbug Bes"]
["Vbcft Bcs"]
["Velmj Qsy"]
["Viajt Fdc"]
["Vmzkg Lsk"]
["Volik Baw"]
["Vtunl Rbm"]
["Vvsqx Wbw"]
["Wascy Zqb"]
["Wdfnj Dug"]
["Wfiwa Vgu"]
["Wjskk Rgq"]
["Woggl Fav"]
["Wpqor Jtr"]
["Wswiu Pda"]
["Wxfsf Fqb"]
["Xaurx Xei"]
["Xcllr Men"]
["Xfurh Eyd"]
["Xifas Spf"]
["Xjvth Jzt"]
["Xnztl Axy"]
["Xrqlj Dda"]
["Xuywj Jok"]
["Xwpdj Umy"]
["Yaoks Prm"]
["Ycnrv Gly"]
["Yilwy Bcj"]
["Ykuzf Odc"]
["Yowcn Hxc"]
["Yqpxv Tzf"]
["Yuiau Dnz"]
["Ywide Kmf"]
["Zbglf Wzu"]
["Zdqum Pjj"]
["Zhglb Thr"]
["Zjafb Fcs"]
["Znrkg Okx"]
["Zqeok Sbt"]
["Zuauz Vgw"]
["Zvodi Dwz"]
["Aazej Etw"]
["Abjcx Hmu"]
["Agmuy Ilp"]
["Ahjjk Efz"]
["Alrlr Ayq"]
["Amoxp Ifn"]
["Arjco Esx"]
["Asxzq Cbh"]
["Auuoa Cfb"]
["Azuih Nky"]
["Bazhi Ekx"]
["Bevkl Wwf"]
["Bjzwr Urc"]
["Bmhcn Xjb"]
["Bqdbo Gyp"]
["Bsofh Duu"]
["Buklg Mjl"]
["Bxqmv Bnz"]
["Capzm Vmv"]
["Celcl Dqd"]
["Cfssd Brz"]
["Cjcdi Tfk"]
["Clrra Fxh"]
["Cpmdx Efb"]
["Cqoan Wfd"]
["Cvhqp Bjg"]
["Cxbcn Tqs"]
["Dblio Nxw"]
["Ddhnm Wdd"]
["Dhwdu Dmy"]
["Djmql Zvk"]
["Dnxsh Dil"]
["Dozrr Mgv"]
["Drubc Lyu"]
["Dvmza Blw"]
["Dzrzv Bnh"]
["Eaunp Xbi"]
["Eelmz Kof"]
["Egltq Jvy"]
["Eljhi Btl"]
["Emqol Oxr"]
["Eqolh Jxl"]
["Etnow Dgo"]
["Exrno Qhg"]
["Ezjfo Cic"]
["Fbipt Lni"]
["Fghgv Luu"]
["Fitjl Zyb"]
["Fnsml Scf"]
["Fqceh Eoh"]
["Ftxlh Lbn"]
["Fvjqw Gev"]
["Gapev Gbl"]
["Gdqna Jaj"]
["Ghbpu Zaw"]
["Gizqx Tbh"]
["Gmvay Ulf"]
["Gpsmi Wzo"]
["Gsnts Pji"]
["Guphf Bsh"]
["Gywxb Qrp"]
["Haltl Flo"]
["Hfjdx Ydy"]
["Hhbzm Wrv"]
["Hkxik Gib"]
["Hlwtp Vjo"]
["Hqmju Jnf"]
["Hsvur Oft"]
["Hxiyp Xwb"]
["Hzecg Xri"]
["Icvpi Iop"]
["Iednp Jtk"]
["Ijcne Tiq"]
["Ilnpc Gtu"]
["Ipapr Wkv"]
["Iqntm Oil"]
["Ivaky Sov"]
["Ivehw Nah"]
["Jagfy Mrw"]
["Jbjzg Esn"]
["Jgjvp Sxo"]
["Jgxha Jyk"]
["Jlqbn Csg"]
["Jnmqw Bbw"]
["Jprmt Tls"]
["Juome Gag"]
["Jwkaq Bkt"]
["Kbfms Lcb"]
["Kdvkt Cvt"]
["Kirxj Aws"]
["Kkmpn Mvp"]
["Kpdys Msj"]
["Krhbv Xza"]
["Ktzis Kon"]
["Kxuye Cbm"]
["Lbykd Pmn"]
["Legof Qsh"]
["Lhjgm Skf"]
["Lljcn Fyu"]
["Lqkfl Ide"]
["Lrriy Rzm"]
["Luxdq Qzk"]
["Lxkrd Xkj"]
["Mbynf Fpn"]
["Mdwoo Gxm"]
["Mgywk Yzk"]
["Mjhyg Api"]
["Mnzox Zoj"]
["Mplzz Ubl"]
["Mrviv Shx"]
["Mwaso Wmq"]
["Nalop Frm"]
["Nclsk Zto"]
["Ngbrl Ytx"]
["Nkfdt Ojm"]
["Nossp Lom"]
["Nqcol Koh"]
["Nurcl Cop"]
["Nyhas Kxi"]
["Ocmxs Ohb"]
["Oegfp Siv"]
["Oioqu Nwv"]
["Okkib Pvh"]
["Omhke Dhx"]
["Oqmwr Roz"]
["Ortqs Qul"]
["Owdpu Zgh"]
["Oypyb Aeo"]
["Pdfie Fcd"]
["Pfzqh Ydb"]
["Pjvmg Syy"]
["Plxeu Ouh"]
["Pqcex Hoq"]
["Psnfr Myb"]
["Pvioc Dpb"]
["Pwyvs Nsd"]
["Qblzl Aex"]
["Qfeju Ahm"]
["Qhsld Aho"]
["Qjrob Bok"]
["Qopcp Sbr"]
["Qpnej Xlm"]
["Quihc Gih"]
["Qwnnk Rsr"]
["Rbxtf Gjz"]
["Rdkxf Ijf"]
["Riilv Wqc"]
["Rjnrx Yvz"]
["Rojuu Vrm"]
["Rqgwd Ftj"]
["Rujke Dzc"]
["Rvxdu Qti"]
["Rxtvo Jnk"]
["Sduwe Qxw"]
["Sdxzf Ezu"]
["Siwok Byb"]
["Snjvv Hle"]
["Snsyk Hct"]
["Stvcm Bew"]
["Svhef Vai"]
["Sxehv Ymg"]
["Tcffy Svz"]
["Tenjt Arq"]
["Tjfec Hza"]
["Tktrl Xxb"]
["Toyota car"]
["Tqtml Xso"]
["Tvxmc Ekz"]
["Txahn Quk"]
["Ubvbc Kpq"]
["Ucquz Cpn"]
["Ugtje Men"]
["Uilbo Iai"]
["Ukcyp Xkc"]
["Uoalr Xum"]
["Usogi Roo"]
["Utoct Ove"]
["Uxgel Msx"]
["Vajxe Atf"]
["Vfbpy Emf"]
["Vhqns Ace"]
["Vlqqo Gxq"]
["Vnoui Njn"]
["Vtthu Euf"]
["Vurxw Ebr"]
["Vzytb Mza"]
["Wcfws Xye"]
["Wgwjc Xgx"]
["Wjcun Lnw"]
["Wlbeh Anv"]
["Woyax Hyz"]
["Wrdul Mla"]
["Wvyzt Zuo"]
["Wyonq Nvq"]
["Xbzkm Awt"]
["Xdefb Kuh"]
["Xhrbi Bja"]
["Xltaq Qxr"]
["Xnnon Cwa"]
["Xpmar Ylk"]
["Xtwwz Kli"]
["Xyeei Pbb"]
["Xzpmi Avc"]
["Ybmce Vyd"]
["Yhxpt Nvy"]
["Ykegr Day"]
["Yogjp Xik"]
["Yqcrb Bxz"]
["Yualf Aum"]
["Ywhfn Sgk"]
["Zaifn Pks"]
["Zbxdf Irg"]
["Zgmbx Iyh"]
["Zjwxb Fba"]
["Zmvrl Ryk"]
["Zooai Gxx"]
["Zterk Hrz"]
["Zwwea Imo"]
["Zzsmz Who"]
["Abiet Zrk"]
["Afzxs Prd"]
["Agxzr Tka"]
["Akwhj Irq"]
["Amjml Obi"]
["Aqoci Vqi"]
["Asmck Lyo"]
["Awmzl Acx"]
["Aywgv Hpz"]
["Bakdb Yzy"]
["Bfqsj Qjt"]
["Bggjf Lsc"]
["Bkrzy Esb"]
["Bmqms Fdl"]
["Bsszu Rce"]
["Bsyrm Lki"]
["Byiuy Xiv"]
["Bznhr Gyl"]
["Cdasf Bxm"]
["Cfbvi Hqj"]
["Cjjfj Ftw"]
["Clelt Lwx"]
["Coigz Zck"]
["Cpwkx Qcw"]
["Cuxft Igi"]
["Cvuia Jnp"]
["Dbgyn Upk"]
["Dcuil Mlk"]
["Dhfac Ahv"]
["Dizdj Uit"]
["Dnqjo Fln"]
["Dolet Fde"]
["Dtavx Nhc"]
["Duies Blc"]
["Dxzbw Afc"]
["Eaklv Okg"]
["Eemds Plj"]
["Efulz Xdt"]
["Ekdxa Fvf"]
["Embky Cqw"]
["Eqvgq Oxz"]
["Esfzl Yxc"]
["Ewtgh Jhl"]
["Eyxpr Myr"]
["Fdknb Xii"]
["Ffpxp Hnh"]
["Fipdi Kzc"]
["Fmsnw Sjv"]
["Fozjn Wil"]
["Ftazj Kzp"]
["Fvtfm Fmp"]
["Fzkfy Lzs"]
["Gawsl Hvw"]
["Ggqza Fiu"]
["Gjvzg Jch"]
["Gmicj Zva"]
["Gobes Exv"]
["Gryco Pif"]
["Gvyss Phd"]
["Gxudj Yhr"]
["Gzrbx Qtg"]
["Hezju Rts"]
["Hgfgi Vmy"]
["Hkmnx Tsx"]
["Hlvov Arq"]
["Hpvrv Cee"]
["Hsank Gdu"]
["Hwbbo Uec"]
["Hxqmt Ccn"]
["Ickqv Aqj"]
["Iegjw Jpp"]
["Iidqq Mdw"]
["Ijslf Emn"]
["Iomnl Feu"]
["Iraxc Tgf"]
["Itvxl Lep"]
["Ivmyx Lhz"]
["Iwzfx Uzt"]
["Jakok Wrn"]
["Jcveh Xsq"]
["Jgxha Jyk"]
["Jlcfb Pgy"]
["Jmgpz Szm"]
["Jrmom Pol"]
["Jtruh Fsh"]
["Jvprg Ayf"]
["Kbknh Fiz"]
["Kdchi Stq"]
["Khngp Bml"]
["Kjuge Qdo"]
["Kowvn Wpd"]
["Kpzrr Vhs"]
["Kvdic Fas"]
["Kwvod Cxd"]
["Lahgh Lzo"]
["Ldsij Xtm"]
["Lijax Web"]
["Lkxtb Vpb"]
["Logit Vnj"]
["Lrcth Xwy"]
["Luxdq Qzk"]
["Lwggr Dng"]
["Mazda car"]
["Mcytc Mfz"]
["Mguuo Eqp"]
["Miufj Fep"]
["Mlkqi Ong"]
["Mokbm Dbf"]
["Mtodn Kll"]
["Muves Zbn"]
["Mxgrt Nia"]
["Nbysj Kyz"]
["Nhbbj Uos"]
["Njmzr Mxt"]
["Nmmdd Kqp"]
["Npijx Qjy"]
["Nrubm Bqw"]
["Nwttm Idy"]
["Oazht Rdc"]
["Odwpv Kfe"]
["Oewsx Upa"]
["Ojrfs Ynt"]
["Olrdt Ezg"]
["Oqbwj Qig"]
["Orlir Ghm"]
["Ovfkb Hrs"]
["Oylia Fju"]
["Pbyep Rpl"]
["Pdtgz Xlf"]
["Pjgsu Avd"]
["Pmque Smt"]
["Ppljs Xqy"]
["Predg Klg"]
["Puxmv Foo"]
["Pxvbc Gtq"]
["Qanrh Vcm"]
["Qbufg Urc"]
["Qhivw Bwa"]
["Qijor Ylr"]
["Qnzzf Tio"]
["Qphvr Gdj"]
["Qtvhv Owp"]
["Qviqb Mbw"]
["Ratmy Vto"]
["Rcnje Uod"]
["Rhsrj Xrd"]
["Rjxvq Jlc"]
["Rnmcq Sfz"]
["Roxfn Fkm"]
["Rtyoe Acl"]
["Rwdyd Sul"]
["Rzrcv Pcn"]
["Sbrnz Hgd"]
["Sdkem Rne"]
["Shlbm Fvo"]
["Sjljk Fvs"]
["Sonmk Sjb"]
["Sqeej Saf"]
["Stvya Yit"]
["Svykt Rrw"]
["Tbusc Bbp"]
["Tdrxj Yte"]
["Tiuhd Wqz"]
["Tkcre Xua"]
["Tobjh Sok"]
["Tpzlh Jkg"]
["Tvlpu Ahg"]
["Twlmq Ysn"]
["Uamwq Utg"]
["Ubsez Xsk"]
["Ueuth Ctf"]
["Uhvxn Eak"]
["Ukzvz Ytn"]
["Unrym Zna"]
["Uqtri Kyv"]
["Uszdu Fpl"]
["Uxoce Bim"]
["Uzbug Bes"]
["Vdoaw Gjv"]
["Vgtwp Onf"]
["Vkyic Neu"]
["Vmzkg Lsk"]
["Vpsnm Fxa"]
["Vugnx Qkv"]
["Vzfck Tvn"]
["Wascy Zqb"]
["Wdtoz Erz"]
["Wilki Dur"]
["Wmdkl Zbz"]
["Woggl Fav"]
["Wsisr Ofo"]
["Wvjds Xeo"]
["Wxfsf Fqb"]
["Xaurx Xei"]
["Xepyw Soq"]
["Xgpjg Vxt"]
["Xifas Spf"]
["Xmxtm Bwi"]
["Xogrv Ubm"]
["Xswdi Xqy"]
["Xvpad Tys"]
["Xzjfw Osj"]
["Yamqo Ztx"]
["Ygrss Izb"]
["Yilwy Bcj"]
["Ynowq Nmp"]
["Yqekg Vow"]
["Ytlja Pty"]
["Yuxly Tyq"]
["Yzwuf Xuo"]
["Zcmow Nuq"]
["Zeykv Lig"]
["Zhglb Thr"]
["Zmkjm Yxo"]
["Zmyhi Jfq"]
["Zskql Zzu"]
["Zuauz Vgw"]
["Zzeuk Wxh"]
["Aagpg Caq"]
["Aewdj Nqm"]
["Agmuy Ilp"]
["Ahyru Ikc"]
["Amjml Obi"]
["Anjjs Zfr"]
["Arjco Esx"]
["Awapk Zzk"]
["Ayocl Osv"]
["Bcggx Wgv"]
["Beabp Bic"]
["Bfrcc Ply"]
["Bjayz Qdq"]
["Blvim Lzn"]
["Bqdbo Gyp"]
["Bsofh Duu"]
["Bvyoh Rsf"]
["Byxij Dqc"]
["Cdcrz Urp"]
["Celcl Dqd"]
["Citnc Ajc"]
["Ckmyk Zbz"]
["Coclc Fqq"]
["Cpmdx Efb"]
["Ctthn Nvr"]
["Cvhuv Vxc"]
["Daivo Hrs"]
["Dblio Nxw"]
["Depzl Maz"]
["Difii Rkp"]
["Dmuhh Jcn"]
["Dnxsh Dil"]
["Drjgu Bpd"]
["Dtywu Jiy"]
["Dytom Yli"]
["Dzrzv Bnh"]
["Edkka Yem"]
["Efiwv Dpu"]
["Ejnwn Fcu"]
["Eljhi Btl"]
["English Longhorn  cow"]
["Erjhj Lli"]
["Etnow Dgo"]
["Exrno Qhg"]
["Ezufh Yto"]
["Ffeod Ehw"]
["Fghgv Luu"]
["Fmdnb Ufy"]
["Fprqk Fne"]
["Fsiuy Rlb"]
["Ftxlh Lbn"]
["Fyopk Hri"]
["Gbtxy Jsf"]
["Gfofx Pum"]
["Ghbpu Zaw"]
["GMC"]
["Gmpgw Lbv"]
["Grmfg Xww"]
["Gtlqy Eay"]
["Gxfwa Uhq"]
["Gyngg Gqu"]
["Heaeh Wdn"]
["Hfjdx Ydy"]
["Hkafv Ffu"]
["Hltqm Rjr"]
["Hpfjl Phi"]
["Hqmju Jnf"]
["Hvpxe Tuz"]
["Hxrgd Dyn"]
["Ibfgl Pgt"]
["Icvpi Iop"]
["Ihoow Pab"]
["Ihrux Fma"]
["Insqm Mms"]
["Ipapr Wkv"]
["Itijj Ebc"]
["Itvxl Lep"]
["Iypsv Nzk"]
["Jagfy Mrw"]
["Jbyzr Axv"]
["Jgluk Dwg"]
["Jhnkw Syy"]
["Jlqbn Csg"]
["Jnmqw Bbw"]
["Jsylv Obs"]
["Jujbp Yjo"]
["Jzzzu Jem"]
["Kbfms Lcb"]
["Kfbal Zrt"]
["Kiubx Hjs"]
["Knnhd Kcq"]
["Kpdys Msj"]
["Ksomf Vsy"]
["Kwbyj Qsl"]
["Lawhu Lpo"]
["Lbykd Pmn"]
["Lgtdj Txg"]
["Lkkun Hbj"]
["Lomvq Rfk"]
["Lqkfl Ide"]
["Lttgn Tfx"]
["Lvkjv Xiv"]
["Maizr Sjc"]
["Mbynf Fpn"]
["Mekix Vhy"]
["Midci Wef"]
["Mmeze Syx"]
["Mnzox Zoj"]
["Mrkmn Cku"]
["Muigg Yiq"]
["Myucl Owh"]
["Nalop Frm"]
["Neeqs Rwk"]
["Njdjs Zkt"]
["Nmlrm Ual"]
["Nossp Lom"]
["Nughr Jnr"]
["Nvrvb Luw"]
["Nyhas Kxi"]
["Ocmxs Ohb"]
["Oeetd Nil"]
["Oinoq Wgi"]
["Okkib Pvh"]
["Oplxb Euw"]
["Orlir Ghm"]
["Oupyu Gxx"]
["Oxdkh Cba"]
["Pbiib Nrr"]
["Peldu Xjz"]
["Phyrw Tju"]
["Pjvmg Syy"]
["Powun Zjk"]
["Psdsx Ffm"]
["Puklx Qqb"]
["Pvznm Omn"]
["Pzzgg Rxj"]
["Qawbi Vrk"]
["Qgclz Hjb"]
["Qhsld Aho"]
["Qnkoe Rtb"]
["Qpdvu Jvu"]
["Qtifg Tax"]
["Quihc Gih"]
["Rajpz Pth"]
["Rceff Mph"]
["Rgegx Kpd"]
["Riilv Wqc"]
["Rkdqm Tyk"]
["Rpzpa Tjy"]
["Rqeul Zdp"]
["Rujke Dzc"]
["Rzfal Pxm"]
["Rzfuj Nrx"]
["Sfobd Gru"]
["Shsxu Tmj"]
["Slqga Brs"]
["Snczc Qdh"]
["Spsnh Ecq"]
["Stvcm Bew"]
["Svhef Vai"]
["Tavge Yfh"]
["Tcpfz Nqv"]
["Thnbg Ehw"]
["Tjfec Hza"]
["Tojbp Zip"]
["Tpiyj Uea"]
["Ttxsi Qea"]
["Tvxmc Ekz"]
["Tyack Ite"]
["Uayvk Goj"]
["Ufvzb Vav"]
["Ugtje Men"]
["Ujsbx Rqa"]
["Umzkt Mpi"]
["Urfnm Ycj"]
["Usogi Roo"]
["Uwvzc Oql"]
["Uygln Gwl"]
["Vdkkr Vln"]
["Vfbpy Emf"]
["Vkfyp Jqi"]
["Vlvjw Lcu"]
["Vrvgj Dyv"]
["Vtthu Euf"]
["Vvzts Fve"]
["Vzxbs Scc"]
["Wcfws Xye"]
["Wgwjc Xgx"]
["Wkbby Uxq"]
["Wnmox Msc"]
["Woyax Hyz"]
["Wuxaj Isn"]
["Wyfro Iul"]
["Xacfi Miz"]
["Xbzkm Awt"]
["Xgdce Zrr"]
["Xjvth Jzt"]
["Xlwqh Dkf"]
["Xnnon Cwa"]
["Xsjdw Her"]
["Xvgns Jlu"]
["Xyzlx Hbe"]
["Yaazb Ogu"]
["Yfwyk Ufw"]
["Yijsi Uqn"]
["Ymkty Uiy"]
["Yogjp Xik"]
["Ysxft Eil"]
["Yvrbd Mpf"]
["Yzkbr Ceb"]
["Zaifn Pks"]
["Zeqbh Tbg"]
["Zifsq Zgz"]
["Zlcnp Edy"]
["Zmvrl Ryk"]
["Zsdeb Eqo"]
["Zterk Hrz"]
["Zylof Gcy"]
["Zzsmz Who"]
["Aeavm Rxp"]
["Afstb Fdo"]
["Ajmak Gnk"]
["Akwhj Irq"]
["Amzia Uon"]
["Asajs Kek"]
["Asnms Ttj"]
["Awmzl Acx"]
["Aywgv Hpz"]
["Beekm Ksf"]
["Belqu Eii"]
["Bjlrn Lxs"]
["Bkrzy Esb"]
["Boyvh Toa"]
["Brrrr Ebn"]
["Bwkvx Daq"]
["Byiuy Xiv"]
["Cbucx Sdg"]
["Cdqvo Rxc"]
["Cijrv Xyu"]
["Cjjfj Ftw"]
["Cnzjw Kcf"]
["Cpbyk Mxi"]
["Cstth Lpm"]
["Cuxft Igi"]
["Czwwo Wdc"]
["Dauxs Fpk"]
["Dfzka Eqb"]
["Dhfac Ahv"]
["Dknrk Mvq"]
["Dnomq Gdk"]
["Drksn Ugi"]
["Dtavx Nhc"]
["Dxovr Yyg"]
["Dzdie Xqn"]
["Edske Hyi"]
["Eemds Plj"]
["Eilms Nnn"]
["Eksub Lod"]
["Epikh Dib"]
["Eqvgq Oxz"]
["Ethgb Aom"]
["Exbix Kto"]
["Eyxpr Myr"]
["Fdknb Xii"]
["Fgukr Uwp"]
["Flbuu Cvk"]
["Fmsnw Sjv"]
["Fsawz Jpv"]
["Fvfor Icg"]
["Fyciy Jjb"]
["Fzvnf Jph"]
["Gevgf Eip"]
["Gillu Yvy"]
["Gknjx Wkg"]
["Gmicj Zva"]
["Gqwsb Ttj"]
["Gsgmy Iex"]
["Gwrzf Gtf"]
["Gyjbx Swy"]
["Hdlqu Zmz"]
["Hfbnh Esf"]
["Hiszs Qnk"]
["Hkmnx Tsx"]
["Honda car"]
["Hrmlj Arg"]
["Husex Zsd"]
["Hwbbo Uec"]
["Iawtc Edz"]
["Idlmd Vfm"]
["Ifxki Mfu"]
["Iidqq Mdw"]
["Ikgqj Pej"]
["Ioccc Ops"]
["Iqevn Asj"]
["Itvxl Lep"]
["Iyejx Ypq"]
["Izddi Ped"]
["Jeetm Jpg"]
["Jfxfq Thn"]
["Jjuqy Gcu"]
["Jlrlk Okn"]
["Jmwxy Ict"]
["Jrmom Pol"]
["Jtruh Fsh"]
["Jzvys Ser"]
["Kasun Jux"]
["Kgqth Qcd"]
["Khngp Bml"]
["Klwev Bja"]
["Kokat Eie"]
["Kthwd Sfp"]
["Kvdic Fas"]
["Kyxrg Bnw"]
["Lbfsq Uav"]
["Lgtdj Txg"]
["Lijax Web"]
["Lnzkt Cum"]
["Lpuze Zhv"]
["Ltjoe Lyy"]
["Luxdq Qzk"]
["Lxszf Ovj"]
["Mazda car"]
["Mfwmx Bcu"]
["Mguuo Eqp"]
["Mjrkb Zet"]
["Mnhnt Wqx"]
["Mrwqz Ozr"]
["Mtodn Kll"]
["Mwwux Xxo"]
["Mzlcs Fbt"]
["Nbysj Kyz"]
["Nhbbj Uos"]
["Nlifb Yhn"]
["Nnyro Xsb"]
["Npijx Qjy"]
["Nvima Lcx"]
["Nxssq Gjq"]
["Obxel Hzj"]
["Odwpv Kfe"]
["Ohunu Mge"]
["Okdyo Woy"]
["Onwfm Eqf"]
["Oqbwj Qig"]
["Ouixw Lrr"]
["Oxsra Gbw"]
["Pangi Chv"]
["Pcnzo Gjw"]
["Phhcg Dny"]
["Pkydp Pvr"]
["Pnyvj Zrq"]
["Ppljs Xqy"]
["Ptsyb Pcs"]
["Puurc Skt"]
["Pznbe Hhx"]
["Qanrh Vcm"]
["Qfeww Kof"]
["Qgveb Fmj"]
["Qlsgt Yjp"]
["Qnzzf Tio"]
["Qsthe Och"]
["Quwzf Rgk"]
["Qzfgm Cdl"]
["Ratmy Vto"]
["Rfpcm Drr"]
["Riohs Oym"]
["Rmalx Mtc"]
["Rnmcq Sfz"]
["Rpmuf Yzk"]
["Rtdhk Qfj"]
["Rvnie Aei"]
["Rzrcv Pcn"]
["Sbrnz Hgd"]
["Sfrgc Pfk"]
["Sihib Pls"]
["Smtvd Rhq"]
["Sonmk Sjb"]
["Stqwp Spl"]
["Suucw Clq"]
["Szycb Drk"]
["Tbusc Bbp"]
["Tgwak Ibz"]
["Tilvb Zgo"]
["Tneoo Eqz"]
["Tobjh Sok"]
["Trvst Zio"]
["Tvhjl Kfs"]
["Tyvlg Mvg"]
["Uamwq Utg"]
["Udohj Yvs"]
["Ugglb Mqu"]
["Ukcyp Xkc"]
["Ukzvz Ytn"]
["Uqgli Ldu"]
["Usfck Two"]
["Uvqge Gku"]
["Uxoce Bim"]
["Vaemn Kol"]
["Velmj Qsy"]
["Vjuaw Lrr"]
["Vkyic Neu"]
["Vnsbm Azg"]
["Vtasw Tzp"]
["Vwuro Lgb"]
["Vzfck Tvn"]
["Wdjkh Ivo"]
["Wgcgu Vzc"]
["Wilki Dur"]
["Wmdkl Zbz"]
["Wqeqk Lxs"]
["Wtmwb Wly"]
["Wvjds Xeo"]
["Wzusc Tbt"]
["Xawgp Hth"]
["Xfpdr Pjx"]
["Xhbpy Bop"]
["Xlmwp Uom"]
["Xmuxh Efj"]
["Xrefi Bwx"]
["Xswdi Xqy"]
["Xyfyz Cvu"]
["Yacmh Scf"]
["Yezbs Ere"]
["Yhjzv Zjo"]
["Ylynz Vvf"]
["Yopla Qlf"]
["Ysbet Tnh"]
["Ytlja Pty"]
["Yynsa Bkp"]
["Yzmfq Xps"]
["Zeacc Xbc"]
["Zeykv Lig"]
["Zkpha Dxf"]
["Zleht Vyz"]
["Zqgmx Tga"]
["Zskql Zzu"]
["Zuoum Pvv"]
["Zzsmz Who"]
["Aawzn Fzu"]
["Aewdj Nqm"]
["Aiyuz Uhc"]
["Akuxd Ern"]
["Aohpa Lqt"]
["Aqaop Cva"]
["Audqs Nwo"]
["Austin car"]
["Axyyt Jlw"]
["Bcggx Wgv"]
["Beabp Bic"]
["Bgwha Uds"]
["Bjztw Gjd"]
["Bpaao Vlz"]
["Bqdbo Gyp"]
["Bvkyw Rpm"]
["Bxqyk Fyk"]
["Cbqyd Ael"]
["Cdcrz Urp"]
["Chloj Zrz"]
["Civog Cnm"]
["Cneuw Viq"]
["Coclc Fqq"]
["Cqhsq Jmw"]
["Cukqs Lfv"]
["Cyodx Fvi"]
["Daivo Hrs"]
["Ddxmp Hkw"]
["Dgpud Rmk"]
["Dlqlp Wvi"]
["Dmuhh Jcn"]
["Dpvat Kzq"]
["Dsokr Vwq"]
["Dwtok Wcv"]
["Dytom Yli"]
["Eaaqi Rdi"]
["Eefkg Lkl"]
["Efiwv Dpu"]
["Ejnwn Fcu"]
["Elsmo Mxx"]
["Eqjim Idb"]
["Erjhj Lli"]
["Ewpwd Yne"]
["Ezguv Olp"]
["Fcnxp Rye"]
["Ffeod Ehw"]
["Fkqak Dje"]
["Fnvnz Gbf"]
["Fqond Zjf"]
["Fsiuy Rlb"]
["Fxnlx Aij"]
["Fyixv Pqr"]
["Gduuv Pfm"]
["Ggclj Vdi"]
["Gjzmp Ayj"]
["Glmsk Dfb"]
["Gpndz Pve"]
["Grmfg Xww"]
["Gwkrj Bom"]
["Gxzop Cph"]
["Hcwgg Icy"]
["Heaeh Wdn"]
["Hilqp Lcp"]
["Hkmwb Gcg"]
["Hnkfq Fik"]
["Hpfjl Phi"]
["Huchu Can"]
["Hugxc Szs"]
["Hzvwg Xrp"]
["Ibfgl Pgt"]
["Ifjiq Fkc"]
["Ifxki Mfu"]
["Ilzit Sdl"]
["Insqm Mms"]
["Iprai Qif"]
["Itlol Jxv"]
["Iuzjc Etx"]
["Iypsv Nzk"]
["Jagfy Mrw"]
["Jfdva Fgu"]
["Jghoc Ifd"]
["Jksob Jna"]
["Jlqbn Csg"]
["Jpcdn Siv"]
["Jszkn Zwb"]
["Jxrsz Ggw"]
["Jzzzu Jem"]
["Kdsqw Rja"]
["Khawd Bpk"]
["Kmdgo Grn"]
["Knnhd Kcq"]
["Ksdxd Ggt"]
["Kuocn Sbd"]
["Kzacp Rqd"]
["Lawhu Lpo"]
["Lggcc Jyy"]
["Lhpij Xvw"]
["Lnkll Wrr"]
["Lomvq Rfk"]
["Lrcth Xwy"]
["Lumeh Rdh"]
["Lzaao Ccp"]
["Maizr Sjc"]
["Mdxwm Szl"]
["Mgktl Vdt"]
["Mlgaa Knh"]
["Mmeze Syx"]
["Mqcca Iop"]
["Msyhf Dhe"]
["Mwvuw Tbq"]
["Myucl Owh"]
["Ndycq Rte"]
["Nfzwk Snp"]
["Njdjs Zkt"]
["Nmlrm Ual"]
["Nooil Fhe"]
["Nuegc Ihm"]
["Nvrvb Luw"]
["Obhxt Wbs"]
["Odwpv Kfe"]
["Ohgfw Kps"]
["Ojalk Hgk"]
["Onlwj Oeh"]
["Oqjxq Xxu"]
["Ospuv Mqx"]
["Oupyu Gxx"]
["Paaxp Krf"]
["Pdsxj Xgu"]
["Pgpva Tpl"]
["Piqbh Kzu"]
["Pnctr Rpj"]
["Poguz Irw"]
["Pstac Ase"]
["Puklx Qqb"]
["Pyvny Fls"]
["Qalbx Ztn"]
["Qejis Ivj"]
["Qgclz Hjb"]
["Qlgah Bgh"]
["Qnpga Zqh"]
["Qrhyn Yif"]
["Qtifg Tax"]
["Qvfbo Kek"]
["Rbmnp Jfx"]
["Rbvqg Sat"]
["Rgegx Kpd"]
["Rlpxd Zzc"]
["Rlvqz Ywa"]
["Rrprq Mvl"]
["Rtjjp Jbg"]
["Rxcce Ecb"]
["Rywxt Wwf"]
["Sbdhx Ocq"]
["Sfobd Gru"]
["Shsxu Tmj"]
["Slqot Idh"]
["Snhua Zud"]
["Ssvyo Mvj"]
["Stvcm Bew"]
["Tafkr Wxx"]
["Tbmni Tdd"]
["Tflen Diw"]
["Thnbg Ehw"]
["Tkekh Lzk"]
["Tnpsd Xwp"]
["Tstif Mln"]
["Ttxsi Qea"]
["Txqww Nyl"]
["Uahbf Ujm"]
["Uecpj Mxu"]
["Ufvzb Vav"]
["Ujijq Kch"]
["Uklyb Bre"]
["Uqcak Mns"]
["Urfnm Ycj"]
["Uvkjq Csu"]
["Uxaic Qyx"]
["Vbngj Rpf"]
["Vdkkr Vln"]
["Vhdhy Jln"]
["Vkbon Qjq"]
["Vlvjw Lcu"]
["Vrvgj Dyv"]
["Vuswt Hgo"]
["Vydbr Frm"]
["Vzxbs Scc"]
["Wfrsq Buf"]
["Wjuhi Giw"]
["Wljaq Aej"]
["Wnmox Msc"]
["Wsvcg Rsn"]
["Wxfsf Fqb"]
["Wymmp Mmp"]
["Xacfi Miz"]
["Xfdom Eks"]
["Xgwib Vfk"]
["Xkkat Roz"]
["Xmjot Ddr"]
["Xqsjf Cge"]
["Xsqhk Jho"]
["Xxbcl Pjh"]
["Xyzlx Hbe"]
["Yekrn Llj"]
["Yhxpx Psl"]
["Ylnnt Hau"]
["Ymkty Uiy"]
["Yrorq Dwd"]
["Yufza Mhn"]
["Yxdax Vpd"]
["Yzkbr Ceb"]
["Zdpgz Qit"]
["Zeqbh Tbg"]
["Zjuvn Ksy"]
["Zlcnp Edy"]
["Zpqhn Syg"]
["Zrtqp Arn"]
["Zwgsd Sra"]
["Zylof Gcy"]
["Aakzb Ehz"]
["Affjt Uhs"]
["Afyrj Zbp"]
["Ajmak Gnk"]
["Akwhj Irq"]
["Aqift Mou"]
["Aqmjp Uey"]
["Avkhp Ycf"]
["Awmzl Acx"]
["Bayoy Aka"]
["Bdcqk Rnd"]
["Bhcdk Vik"]
["Bjlrn Lxs"]
["Bnrku Ayt"]
["Bpogv Xts"]
["Buzan Hhn"]
["Bwkvx Daq"]
["Cboqu Ord"]
["Ccpwm Lmw"]
["Cgtqf Seh"]
["Cijrv Xyu"]
["Clelt Lwx"]
["Cnvvv Mro"]
["Crvic Vmb"]
["Cstth Lpm"]
["Cwftx Srk"]
["Czpis Xxg"]
["Ddyuz Mho"]
["Dfzka Eqb"]
["Dkcjm Ocs"]
["Dmesg Ojl"]
["Dqelw Ppt"]
["Drksn Ugi"]
["Dvwot Qag"]
["Dydid Oab"]
["Ebpzu Ghz"]
["Edske Hyi"]
["Efhiw Emg"]
["Eixlo Woi"]
["Eksub Lod"]
["Epikh Dib"]
["Erwfn Hvf"]
["Evjes Sub"]
["Exbix Kto"]
["Fbzbe Ccu"]
["Fgbjy Bls"]
["Fjukm Fms"]
["Flkbi Ctl"]
["Fqezr Vay"]
["Ftqwm Iia"]
["Fwfjs Zsk"]
["Fyciy Jjb"]
["Gdhzu Kts"]
["Gfgut Raa"]
["Gjqac Nwe"]
["Glgda Cob"]
["Gozxs Gog"]
["Gqwtd Wxy"]
["Gvghh Qxi"]
["Gwrzf Gtf"]
["Hcank Qes"]
["Heshu Rct"]
["Hhrwe Ilb"]
["Hiszs Qnk"]
["Hmuvm Pvk"]
["Hpvrv Cee"]
["Htbei Hvj"]
["Husex Zsd"]
["Hwqnf Ews"]
["Iafaa Lcr"]
["Icifj Kcx"]
["Ifxki Mfu"]
["Ilnpc Gtu"]
["Imrgy Gbb"]
["Iraxc Tgf"]
["Iswfi Mkz"]
["Iwsnq Ocb"]
["Iyqrn Tin"]
["Izpqt Xuo"]
["Jeetm Jpg"]
["Jfxfq Thn"]
["Jkppc Nlo"]
["Jlboq Xrz"]
["Jqczo Pru"]
["Jrmom Pol"]
["Jvtkb Mgf"]
["Jzjnu Nnq"]
["Kekmg Wot"]
["Kgqth Qcd"]
["Kkjpq Wfv"]
["Kmrhq Jck"]
["Ksdxd Ggt"]
["Kthwd Sfp"]
["Kyrho Ejm"]
["Lahgf Tiv"]
["Leust Xja"]
["Lgtdj Txg"]
["Lknid Iom"]
["Lnzkt Cum"]
["Lspnj Zjz"]
["Ltjoe Lyy"]
["Lwfxq Msn"]
["Lzvpu Pko"]
["Meltl Teq"]
["Mfwmx Bcu"]
["Mjjgl Loo"]
["Mlovz Qsk"]
["Mnhnt Wqx"]
["Mrwqz Ozr"]
["Mvvxs Eqv"]
["Myask Lij"]
["Mzlcs Fbt"]
["Nfdtk Ijt"]
["Nifbk Lll"]
["Nmbni Plx"]
["Nnyro Xsb"]
["Ntxni Czo"]
["Nvmnm Hlq"]
["Nzyeb Iat"]
["Obxel Hzj"]
["Ogumm Agv"]
["Ojrco Xpk"]
["Omxfi Oci"]
["Ooonc Wqo"]
["Osflc Wlu"]
["Ovqdy Mlw"]
["Ozgel Xws"]
["Pangi Chv"]
["Pfzyy Hgx"]
["Phghc Qjm"]
["Pmqxp Opb"]
["Pnyvj Zrq"]
["Psfii Yuc"]
["Ptfcm Bgn"]
["Pxrhk Prq"]
["Pznbe Hhx"]
["Qdncx Orb"]
["Qgkmx Cgo"]
["Qkukl Nbn"]
["Qlsgt Yjp"]
["Qqylx Kwa"]
["Qtmik Rpz"]
["Qxiyz Pyo"]
["Qzfgm Cdl"]
["Rbgkz Huy"]
["Rfahx Qzh"]
["Rhsnj Qxr"]
["Rmalx Mtc"]
["Rnmcq Sfz"]
["Rrrcd Fih"]
["Rtwwe Kwm"]
["Rynzm Vyk"]
["Rzrcv Pcn"]
["Sfdrs Poj"]
["Sgzwu Cma"]
["Skwic Ljb"]
["Smtvd Rhq"]
["Ssljg Exc"]
["Sthis Nxs"]
["Syfdk Mox"]
["Szycb Drk"]
["Tdwsn Nbj"]
["Tgvhx Srp"]
["Tlimd Api"]
["Tneoo Eqz"]
["Trejq Umm"]
["Ttggd Tbv"]
["Tyack Ite"]
["Tyvlg Mvg"]
["Ucuex Piw"]
["Ufgit Pmj"]
["Uixei Gio"]
["Ukcyp Xkc"]
["Umshf Yck"]
["Uqtri Kyv"]
["Uuvgs Onq"]
["Uvqge Gku"]
["Uyjef Chm"]
["Vcuvi Bfr"]
["Vibtp Wbg"]
["Vjuaw Lrr"]
["Vnexc Zqi"]
["Vqyfc Tke"]
["Vtasw Tzp"]
["Vwuro Lgb"]
["Wbpks Bug"]
["Wegwg Bcq"]
["Wgcgu Vzc"]
["Wkuhm Wrg"]
["Wmoys Dkc"]
["Wryhc Kar"]
["Wumff Mbw"]
["Wyecd Rla"]
["Wztxe Qgv"]
["Xdyyv Ujm"]
["Xfpdr Pjx"]
["Xjyzk Ccd"]
["Xmkfv Lbz"]
["Xqipf Qkp"]
["Xrqlj Dda"]
["Xwpxs Ldh"]
["Xzgfq Ztb"]
["Ycizi Xjj"]
["Yezbs Ere"]
["Ykvcv Kfe"]
["Ylomr Dtd"]
["Yqqza Nss"]
["Ysbet Tnh"]
["Ywjwo Hdo"]
["Yxpry Uvd"]
["Zcpuo Jwr"]
["Zeacc Xbc"]
["Zfrie Hqk"]
["Zlcnp Edy"]
["Zmfiq Wqf"]
["Zqgmx Tga"]
["Zvsvc Mbk"]
["Zxzgl Tgd"]
["Abucn Llm"]
["Adhjb Dxd"]
["Ahjno Cbp"]
["Ahvzl Yfe"]
["Akrnh Khe"]
["Aohpa Lqt"]
["Aqaop Cva"]
["Atclo Htm"]
["Avywu Tdx"]
["Bbbni Qaj"]
["Bcggx Wgv"]
["Bgphz Qiz"]
["Bjbml War"]
["Bngaa Ehn"]
["Bpaao Vlz"]
["Btysx Ptg"]
["Bvrwg Uyd"]
["Caracu  cow"]
["Cbqyd Ael"]
["Cedbl Rty"]
["Chuqr Inb"]
["Cluts Osk"]
["Cneuw Viq"]
["Cpwkx Qcw"]
["Csidd Zdg"]
["Cxgho Snb"]
["Cyodx Fvi"]
["Dcnxg Qwz"]
["Dflnj Gin"]
["Djspm Fbv"]
["Dlqlp Wvi"]
["Dnchs Ytl"]
["Dqvre Jxo"]
["Dsokr Vwq"]
["Dwtok Wcv"]
["Dyzdw Kcd"]
["Ecctw Ohg"]
["Eefkg Lkl"]
["Eigyz Cth"]
["Eleyl Pjt"]
["Eovlr Iik"]
["Eqjim Idb"]
["Eutka Umn"]
["Exuvc Yhj"]
["Farvi Rqg"]
["Fcnxp Rye"]
["Fiwry Ezm"]
["Fkepd Zlm"]
["Fpxut Wwg"]
["Frnhq Zjy"]
["Fvlkg Fzi"]
["Fwydx Fep"]
["Gbmxi Nby"]
["Gduuv Pfm"]
["Gjbov Sxv"]
["Gkzfj Ztu"]
["Goovu Tey"]
["Gpndz Pve"]
["Gurgf Ldp"]
["Gwsaj Ioc"]
["Haogq Ycf"]
["Hcwgg Icy"]
["Hhekw Rxc"]
["Hhivb Mim"]
["Hmfpt Pez"]
["Hnkfq Fik"]
["Hswgw Eiy"]
["Htbei Hvj"]
["Hyfcq Ozb"]
["Hzvwg Xrp"]
["Ibvzm Onj"]
["Ifofu Wzx"]
["Ihmmt Rkk"]
["Ilzit Sdl"]
["Insqm Mms"]
["Isfih Stv"]
["Ithup Sld"]
["Ixlbk Zgq"]
["Iypsv Nzk"]
["Jbnpk Nhh"]
["Jfhqs Vap"]
["Jjnbg Dqe"]
["Jksob Jna"]
["Jnftb Eap"]
["Jqpif Ajd"]
["Jwntx Ckj"]
["Jxrsz Ggw"]
["Kdhbb Dsz"]
["Kfsco Qud"]
["Kknaw Mgy"]
["Kmdgo Grn"]
["Krwtz Jgj"]
["Ksumb Ngw"]
["Kxvgh Pxt"]
["Kzacp Rqd"]
["Lbfsq Uav"]
["Lfylz Tha"]
["Lljsg Akx"]
["Lnkll Wrr"]
["Lqlzp Axb"]
["Lsuvn Jwd"]
["Lxlfr Guq"]
["Lzaao Ccp"]
["Mclyy Lam"]
["Mfmtr Jzd"]
["Mjiif Dtg"]
["Mlgaa Knh"]
["Mpppy Bri"]
["Mriho Avc"]
["Msyhf Dhe"]
["Mwvuw Tbq"]
["Myjxy Olh"]
["Ndtuc Ywd"]
["Nfzwk Snp"]
["Nlomn Nlo"]
["Nnyro Xsb"]
["Nspul Ukv"]
["Nutxq Zyh"]
["Nzgjb Pby"]
["Ocjsh Lxy"]
["Ofqcd Xxi"]
["Ohgfw Kps"]
["Omhtt Knl"]
["Opzvz Nwe"]
["Orxtz Ivu"]
["Otnic Bgj"]
["Oyqtg Mjx"]
["Ozkvs Yaj"]
["Peqmi Teo"]
["Pgpva Tpl"]
["Plyce Inz"]
["Pnmvn Kws"]
["Prnlr Bfj"]
["Pstac Ase"]
["Pwzso Oqx"]
["Pzbzc Ehw"]
["Qcldv Mob"]
["Qejis Ivj"]
["Qglqj Ztd"]
["Qngly Ykc"]
["Qnhih Uge"]
["Qrhyn Yif"]
["Qwomg Nnn"]
["Qwsfi Pab"]
["Rdeoj Mms"]
["Rfhno Auo"]
["Rjodg Tfx"]
["Rlhpi Pzo"]
["Rncbx Dvg"]
["Rrprq Mvl"]
["Rtjjp Jbg"]
["Rxcdj Kab"]
["Rzdwt Hxe"]
["Sdyst Zty"]
["Sfobd Gru"]
["Slebl Jta"]
["Smart4two car"]
["Sqrti Ccx"]
["Ssvyo Mvj"]
["Suvfz Avh"]
["Szklt Nha"]
["Tenlo Haf"]
["Tflen Diw"]
["Tjuln Oqi"]
["Tmsbt Syp"]
["Tqvnj Rlq"]
["Tstif Mln"]
["Txhna Ldp"]
["Tyorf Ixv"]
["Ucsnh Vcf"]
["Uecpj Mxu"]
["Uimhg Lug"]
["Ujoas Urt"]
["Uodxj Gzj"]
["Uqcak Mns"]
["Usjdd Rfu"]
["Uvgoa Hre"]
["Uxaic Qyx"]
["Vbngj Rpf"]
["Vfcym Dbx"]
["Viwus Qct"]
["Vkbon Qjq"]
["Vqffn Ovf"]
["Vukel Wju"]
["Vwhpf Woi"]
["Vydbr Frm"]
["Wdskr Inw"]
["Wilki Dur"]
["Wkacq Wqz"]
["Wljaq Aej"]
["Wrffa Mzj"]
["Wtqii Gyq"]
["Wxrbd Jnj"]
["Wzemn Arq"]
["Xdewq Zhl"]
["Xfovq Zzm"]
["Xixyw Xyv"]
["Xkkat Roz"]
["Xpmib Ufo"]
["Xsjho Ber"]
["Xwbzk Tvj"]
["Xxbcl Pjh"]
["Ybsct Pro"]
["Yglxe Xua"]
["Yjlto Mch"]
["Ylnnt Hau"]
["Yqdyk Mmn"]
["Yrorq Dwd"]
["Yvmnj Gdm"]
["Yxdax Vpd"]
["Zbxjt Vwo"]
["Zdmbh Qwb"]
["Zhtfz Teq"]
["Zjuvn Ksy"]
["Zllzh Zey"]
["Zrcec Sqw"]
["Zsbdu Cmf"]
["Zwgsd Sra"]
["Zylof Gcy"]
["Adqmr Zmd"]
["Adyrs Ygx"]
["Aijoo Hzs"]
["Ajmak Gnk"]
["Aniee Vbs"]
["Apixi Myq"]
["Atqgt Xee"]
["Avkhp Ycf"]
["Azrty Sqx"]
["Bbqfc Gfw"]
["Bgiyy Ytb"]
["Bhcdk Vik"]
["Bndqg Zmh"]
["Boouc Xfg"]
["Bszcn Xts"]
["Buzan Hhn"]
["Byiuy Xiv"]
["Cbagm Aeq"]
["Cffsl Dgx"]
["Cgtqf Seh"]
["Cjszu Jjy"]
["Cmsnd Xpc"]
["Cpxfw Ywq"]
["Crvic Vmb"]
["Cvuat Aan"]
["Cxzov Qqf"]
["Dcwzs Ayq"]
["Ddyuz Mho"]
["Diqhp Tnr"]
["Dlbdo Rnb"]
["Doprq Sry"]
["Dqelw Ppt"]
["Dsius Yit"]
["Dwfxa Vff"]
["Dydid Oab"]
["Ebpzu Ghz"]
["Eehhm Jbf"]
["Ehblh Fbr"]
["Eixlo Woi"]
["Eodmb Qxh"]
["Ergde Ebl"]
["Etzit Pug"]
["Evzcw Acc"]
["Ezypu Gkc"]
["Fefli Gxv"]
["Fhiwu Oyf"]
["Fjukm Fms"]
["Fpall Kqa"]
["Fqiuh Fwa"]
["Futae Pod"]
["Fwfjs Zsk"]
["Gbasw Ius"]
["Gdjbx Cno"]
["Ghrzl Wlz"]
["Gjqac Nwe"]
["Gobta Unr"]
["Gqkdj Kpb"]
["Guhiy Btx"]
["Gvghh Qxi"]
["Gzsut Hcl"]
["Hdlqu Zmz"]
["Hfwxy Xbq"]
["Hhrwe Ilb"]
["Hjktc Tco"]
["Hmiuh Fiz"]
["Honda bike"]
["Htbei Hvj"]
["Hxrgd Dyn"]
["Hyundai car"]
["Idlmd Vfm"]
["Ieqky Rjw"]
["Ijwta Raf"]
["Imduf Put"]
["Infzz Lio"]
["Iraxc Tgf"]
["Iswfi Mkz"]
["Ivkwn Kbv"]
["Ivlrh Bsz"]
["Ivmcd Tvm"]
["Ivmpj Qfb"]
["Ivmyx Lhz"]
["Ivqkq Lil"]
["Ivtic Czr"]
["Ivtur Zvv"]
["Ivwoo Ebk"]
["Ivzdk Yrz"]
["Iwbca Cos"]
["Iwbqo Mxe"]
["Iwbqu Lvw"]
["Iwdzk Ipk"]
["Iwiot Hsa"]
["Iwisr Rox"]
["Iwjgt Waf"]
["Iwjrx Pcy"]
["Iwkbe Oye"]
["Iwkid Ulk"]
["Iwkzo Gmn"]
["Iwomo Zxf"]
["Iwozi Msq"]
["Iwpbo Myi"]
["Iwsnq Ocb"]
["Iwstm Dls"]
["Iwtnb Pir"]
["Iwurn Dvf"]
["Iwuwf Xsf"]
["Iwvsk Hbk"]
["Iwwgr Xim"]
["Iwxis Oht"]
["Iwyjw Dxy"]
["Iwzfx Uzt"]
["Ixbao Wuc"]
["Ixcrc Iex"]
["Ixdti Bws"]
["Ixdvu Uwx"]
["Ixefk Tkr"]
["Ixgmi Unk"]
["Ixhdp Szv"]
["Ixhpc Wmq"]
["Ixhpp Zpo"]
["Ixlbk Zgq"]
["Ixlsj Zeg"]
["Ixlwd Mtk"]
["Ixmxx Lyu"]
["Ixump Wrt"]
["Ixxot Pls"]
["Ixzaf Ycb"]
["Ixzmq Txz"]
["Iycee Ntw"]
["Iyecr Gsg"]
["Iyejx Ypq"]
["Iyetq Dbv"]
["Iyezw Whv"]
["Iyfxd Lea"]
["Iygpf Yjx"]
["Iyiwv Pld"]
["Iyklt Wvm"]
["Iymbn Jqn"]
["Iyotc Zhy"]
["Iypsv Nzk"]
["Iypuo Lyh"]
["Iyqrn Tin"]
["Iytor Abk"]
["Iytwp Nil"]
["Iyvch Ogh"]
["Iyxfw Yxr"]
["Iyztv Llb"]
["Izabz Cni"]
["Izddi Ped"]
["Izdsz Kqw"]
["Izflq Cms"]
["Izgtf Mgx"]
["Izjdj Mgu"]
["Izjvg Fvl"]
["Izklf Exi"]
["Iznbs Cxb"]
["Izney Nvv"]
["Izpde Lyd"]
["Izpqt Xuo"]
["Izqbv Qrm"]
["Izqwz Bch"]
["Izrzz Yql"]
["Izshp Ipz"]
["Izzdq Uqs"]
["Izzhd Pur"]
["Jabvq Awi"]
["Jabyi Cdf"]
["Jadrn Fas"]
["Jagfy Mrw"]
["Jahmm Hnx"]
["Jakhv Yky"]
["Jakok Wrn"]
["Jalqr Bka"]
["Jamgr Imx"]
["Janxv Din"]
["Japub Eka"]
["Jaqzo Nzp"]
["Jashx Cru"]
["Jaszd Mbs"]
["Jautn Vrj"]
["Jaxgw Gbb"]
["Jayht Mjm"]
["Jazam Vbi"]
["Jbbft Hzq"]
["Jbbnz Bwl"]
["Jbcdf Sgp"]
["Jbdrd Zje"]
["Jbjzg Esn"]
["Jbnlv Vps"]
["Jbnpk Nhh"]
["Jbowj Kad"]
["Jbslr Rqz"]
["Jbtdi Shz"]
["Jbtyy Ink"]
["Jbvax Cyt"]
["Jbycr Jyp"]
["Jbyjt Clk"]
["Jbyzr Axv"]
["Jcatf Pzr"]
["Jcfzl Rdm"]
["Jcknu Zye"]
["Jcnbv Urx"]
["Jcqhb Qaf"]
["Jcqjt Ffa"]
["Jcrzv Bqj"]
["Jctwo Vjf"]
["Jcveh Xsq"]
["Jcwbn Yeh"]
["Jcxse Nlt"]
["Jcytt Xrj"]
["Jdbyj Gpc"]
["Jdcxa Vmy"]
["Jddti Tgc"]
["Jdikh Syk"]
["Jdjao Bds"]
["Jdkdw Krh"]
["Jdmir Mbe"]
["Jdopt Mag"]
["Jdsay Vov"]
["Jdtag Fcv"]
["Jdyew Wfh"]
["Jebya Ohb"]
["Jecpj Hkg"]
["Jedrc Glg"]
["Jedxg Yrd"]
["Jeees Kwo"]
["Jeetm Jpg"]
["Jefso Xec"]
["Jegqn Rpr"]
["Jejhe Enr"]
["Jemjf Akj"]
["Jemod Fsq"]
["Jeogf Lhy"]
["Jeqat Guh"]
["Jeqxq Rwk"]
["Jerlm Nch"]
["Jesjd Pnx"]
["Jevie Yam"]
["Jevmb Ojg"]
["Jewcb Jtx"]
["Jewog Rnj"]
["Jezre Vyv"]
["Jfakq Jvx"]
["Jfbqe Hpu"]
["Jfdva Fgu"]
["Jfhqs Vap"]
["Jfita Naf"]
["Jfjdg Hwz"]
["Jfjjh Xoo"]
["Jfllq Gcj"]
["Jfpah Fps"]
["Jfqpl Hmw"]
["Jfssx Fgf"]
["Jftdb Udm"]
["Jfuns Uvj"]
["Jfxfq Thn"]
["Jfzrq Pgm"]
["Jgauh Jnh"]
["Jgazh Upj"]
["Jgbrs Nhl"]
["Jgcwe Ynv"]
["Jgefi Gpf"]
["Jgflz Qie"]
["Jghjl Dfo"]
["Jghoc Ifd"]
["Jgjvp Sxo"]
["Jglkf Dui"]
["Jgluk Dwg"]
["Jgpwi Bhy"]
["Jgsxt Lex"]
["Jgthd Wbm"]
["Jgvyt Wnn"]
["Jgwas Sxq"]
["Jgwlp Axx"]
["Jgxha Jyk"]
["Jgyoa Qrk"]
["Jgytk Ugl"]
["Jgzkz Jwy"]
["Jhbqp Dhr"]
["Jhctf Hxq"]
["Jhdwv Wnq"]
["Jhdyu Nlr"]
["Jhead Mfw"]
["Jhghv Rqt"]
["Jhijh Wyc"]
["Jhirh Ecg"]
["Jhiue Buq"]
["Jhjlx Itl"]
["Jhlnn Xqn"]
["Jhlov Akz"]
["Jhlyy Ejy"]
["Jhmvz Ook"]
["Jhnii Hvx"]
["Jhnkw Syy"]
["Jhtjy Szy"]
["Jhvgd Kgh"]
["Jhwnk Yzo"]
["Jhwrq Vxp"]
["Jhwvc Sox"]
["Jhyif Gzi"]
["Jiffn Lmo"]
["Jiiap Gyl"]
["Jikxm Xkr"]
["Jimzz Gcd"]
["Jiomf Rui"]
["Jiown Umw"]
["Jiset Pdw"]
["Jiter Atj"]
["Jiubo Lns"]
["Jjbmu Lpz"]
["Jjdlq Ixx"]
["Jjeaa Drh"]
["Jjgbb Etf"]
["Jjnbg Dqe"]
["Jjnsi Zyn"]
["Jjocl Jdk"]
["Jjoff Itj"]
["Jjokv Wvc"]
["Jjoov Uxj"]
["Jjoty Mjm"]
["Jjrgw Qck"]
["Jjsvq Pma"]
["Jjtta Pun"]
["Jjuqy Gcu"]
["Jjvdx Tks"]
["Jjvsx Urb"]
["Jjypq Tha"]
["Jkbjt Pub"]
["Jkbun Tfb"]
["Jkbuw Kqc"]
["Jkcdi Olt"]
["Jkdrt Nuc"]
["Jkfco Vxf"]
["Jkgyf Uxl"]
["Jkimp Tdx"]
["Jkiqg Vcx"]
["Jkjzq Pgb"]
["Jkkck Xft"]
["Jklet Zaf"]
["Jknwv Shu"]
["Jkppc Nlo"]
["Jkqjf Mbj"]
["Jksob Jna"]
["Jksos Eyg"]
["Jksug Plr"]
["Jksvx Tqa"]
["Jktag Yvb"]
["Jkvud Xec"]
["Jkwcr Yku"]
["Jlakc Lzm"]
["Jlbir Ray"]
["Jlboq Xrz"]
["Jlcfb Pgy"]
["Jldhm Hzv"]
["Jlfbd Som"]
["Jlgez Fms"]
["Jlgmh Ddq"]
["Jlipl Rkf"]
["Jlklk Mxf"]
["Jlmmt Pxe"]
["Jloll Tmz"]
["Jlqbn Csg"]
["Jlqgw Set"]
["Jlrlk Okn"]
["Jlsjm Jof"]
["Jlssu Aze"]
["Jltea Dkp"]
["Jlwup Ggc"]
["Jlxka Ttv"]
["Jmatt Saz"]
["Jmgpz Szm"]
["Jmhfh Tjr"]
["Jmilc Lih"]
["Jmlii Ugh"]
["Jmlpb Bwk"]
["Jmqip Tud"]
["Jmrck Fbv"]
["Jmrvo Ojl"]
["Jmtdr Sxm"]
["Jmwht Asg"]
["Jmwxy Ict"]
["Jmxiz Cxc"]
["Jmzax Qld"]
["Jnadu Sfh"]
["Jnawj Tmt"]
["Jnbut Bzl"]
["Jncmr Mwl"]
["Jnfeg Bhb"]
["Jnftb Eap"]
["Jngps Gjd"]
["Jnmqw Bbw"]
["Jnokp Crd"]
["Jnsrn Pln"]
["Jnvej Wpd"]
["Jnxgr Jly"]
["Jnxnv Pbp"]
["Jockh Qtz"]
["Joeqv Fuw"]
["Jofcl Rsl"]
["Joilw Znb"]
["Joles Yhx"]
["Jolfg Cxs"]
["Joohk Agv"]
["Joomp Uyd"]
["Jopjb Qwv"]
["Joptt Lcm"]
["Jopwi Qvy"]
["Jostw Avh"]
["Jotoq Sbk"]
["Joxme Pxn"]
["Joybc Eib"]
["Jpcdn Siv"]
["Jpfkz Ofp"]
["Jpgjz Ccy"]
["Jpjqx Kcv"]
["Jpjse Ucy"]
["Jpmhg Vtf"]
["Jpnbh Zcp"]
["Jpnsy Qdv"]
["Jprmt Tls"]
["Jptpf Duk"]
["Jpuld Emz"]
["Jpxqu Lpa"]
["Jpxzs Axs"]
["Jpyja Fhp"]
["Jpzjx Srx"]
["Jqads Ptf"]
["Jqbhr Yqr"]
["Jqbyg Riw"]
["Jqczo Pru"]
["Jqdoq Fkt"]
["Jqiiu Ouo"]
["Jqijh Xui"]
["Jqike Avz"]
["Jqkap Jtf"]
["Jqkdw Uto"]
["Jqlil Mwm"]
["Jqlti Tec"]
["Jqpif Ajd"]
["Jqqbi Niq"]
["Jqvrl Gkh"]
["Jqyzl Orj"]
["Jqzow Roo"]
["Jrbmn Fyy"]
["Jrbsq Isd"]
["Jrdbt Vuz"]
["Jrgbn Ycy"]
["Jrmbg Pdx"]
["Jrmom Pol"]
["Jrmpi Ays"]
["Jrmra Hcq"]
["Jrods Kdr"]
["Jrvtw Cjj"]
["Jsccq Oqj"]
["Jsezl Qty"]
["Jsfak Mjx"]
["Jsfta Geb"]
["Jshog Odl"]
["Jsjur Xvo"]
["Jskgc Slk"]
["Jsnpd Tkj"]
["Jspmo Vzj"]
["Jsrob Ebq"]
["Jswdi Cgr"]
["Jswim Oam"]
["Jsxwv Tcl"]
["Jsylv Obs"]
["Jszkn Zwb"]
["Jsznb Dus"]
["Jszqq Bob"]
["Jtcon Qjr"]
["Jthvv Wfc"]
["Jtjro Tep"]
["Jtmqv Xaw"]
["Jtmts Fvy"]
["Jtoho Agc"]
["Jtqut Tut"]
["Jtruh Fsh"]
["Jtvli Eqh"]
["Jtwcu Bgg"]
["Jtwfb Tpw"]
["Jtwil Srg"]
["Jtxhu Uki"]
["Jtzsx Ddr"]
["Jueww Ybl"]
["Jufpn Lfk"]
["Jujbp Yjo"]
["Jujth Hwc"]
["Jumcp Hto"]
["Juome Gag"]
["Juonx Rfp"]
["Juotn Gqp"]
["Jupvf Fpj"]
["Juwcq Zrs"]
["Juyil Vvk"]
["Juyvp Tkh"]
["Jvazt Dxx"]
["Jvbsb Mqn"]
["Jvekn Zxv"]
["Jvfjk Bpl"]
["Jvhiy Sxr"]
["Jvkts Nsj"]
["Jvmfc Xwj"]
["Jvngg Trb"]
["Jvnub Rjp"]
["Jvogy Iov"]
["Jvprg Ayf"]
["Jvtkb Mgf"]
["Jvtot Tcj"]
["Jvvvr Euo"]
["Jvycw Jma"]
["Jwevr Qtx"]
["Jwhsj Dof"]
["Jwihm Cms"]
["Jwjfi Odl"]
["Jwkaq Bkt"]
["Jwntx Ckj"]
["Jwolu Rvi"]
["Jwsvs Sgp"]
["Jwtff Vbv"]
["Jwwur Hdl"]
["Jwzuj Ckx"]
["Jxasd Pfi"]
["Jxaui Cmb"]
["Jxbzb Qoe"]
["Jxgrx Ucs"]
["Jxhzu Tax"]
["Jximn Ppv"]
["Jxipy Qyc"]
["Jxjwa Ack"]
["Jxjye Rsb"]
["Jxkhr Ngu"]
["Jxloh Ctw"]
["Jxplz Zix"]
["Jxrgw Yui"]
["Jxrsz Ggw"]
["Jxsby Fhq"]
["Jxvxn Hxl"]
["Jxxqh Doa"]
["Jyajn Tqi"]
["Jybii Aut"]
["Jyeac Wbt"]
["Jyfsj Qpk"]
["Jyfyr Xwa"]
["Jygtd Sij"]
["Jygzg Jer"]
["Jyhlf Ima"]
["Jykji Aef"]
["Jynor Kzu"]
["Jypfn Kri"]
["Jyxcx Gbw"]
["Jyztl Tid"]
["Jyzua Zia"]
["Jzaqw Pen"]
["Jzjnu Nnq"]
["Jzpyx Osg"]
["Jzquz Cxb"]
["Jzszv Aia"]
["Jztnm Lve"]
["Jzvba Mza"]
["Jzvjl Kbj"]
["Jzvpr Bvc"]
["Jzvys Ser"]
["Jzxex Pjm"]
["Jzzzu Jem"]
["Kacee Ggt"]
["Kacob Lnn"]
["Kaerz Dzb"]
["Kaffp Qsj"]
["Kakco Zax"]
["Kakez Fwe"]
["Kalgt Jxd"]
["Kanro Jbt"]
["Kasun Jux"]
["Kaswf Qbe"]
["Kauug Mch"]
["Kavbr Zlg"]

{"sheet":"Mike","index":4,"n_rows":15,"n_cols":8,"rows_kept":15,"cut":false,"hidden":false,"merged":[]}
["List",null,"Lookup","Count","Item 1","Item 2","Item 3","Item 4"]
["Toyota car",null,"Car",{"$f":"SUMPRODUCT(--ISNUMBER(SEARCH(C2,$A$2:$A$10)))","v":2},{"$f":"IF(COLUMNS($E2:E2)>$D2,\"\",INDEX($A$2:$A$10,_xlfn.AGGREGATE(15,6,(ROW($A$2:$A$10)-ROW($A$2)+1)/ISNUMBER(SEARCH($C2,$A$2:$A$10)),COLUMNS($E2:E2))))","v":"Toyota car"},{"$f":"IF(COLUMNS($E2:F2)>$D2,\"\",INDEX($A$2:$A$10,_xlfn.AGGREGATE(15,6,(ROW($A$2:$A$10)-ROW($A$2)+1)/ISNUMBER(SEARCH($C2,$A$2:$A$10)),COLUMNS($E2:F2))))","v":"Benz Car"},{"$f":"IF(COLUMNS($E2:G2)>$D2,\"\",INDEX($A$2:$A$10,_xlfn.AGGREGATE(15,6,(ROW($A$2:$A$10)-ROW($A$2)+1)/ISNUMBER(SEARCH($C2,$A$2:$A$10)),COLUMNS($E2:G2))))","v":""},{"$f":"IF(COLUMNS($E2:H2)>$D2,\"\",INDEX($A$2:$A$10,_xlfn.AGGREGATE(15,6,(ROW($A$2:$A$10)-ROW($A$2)+1)/ISNUMBER(SEARCH($C2,$A$2:$A$10)),COLUMNS($E2:H2))))","v":""}]
["GMC JEEP",null,"Truck",{"$f":"SUMPRODUCT(--ISNUMBER(SEARCH(C3,$A$2:$A$10)))","v":1},{"$f":"IF(COLUMNS($E3:E3)>$D3,\"\",INDEX($A$2:$A$10,_xlfn.AGGREGATE(15,6,(ROW($A$2:$A$10)-ROW($A$2)+1)/ISNUMBER(SEARCH($C3,$A$2:$A$10)),COLUMNS($E3:E3))))","v":"FORD Truck"},{"$f":"IF(COLUMNS($E3:F3)>$D3,\"\",INDEX($A$2:$A$10,_xlfn.AGGREGATE(15,6,(ROW($A$2:$A$10)-ROW($A$2)+1)/ISNUMBER(SEARCH($C3,$A$2:$A$10)),COLUMNS($E3:F3))))","v":""},{"$f":"IF(COLUMNS($E3:G3)>$D3,\"\",INDEX($A$2:$A$10,_xlfn.AGGREGATE(15,6,(ROW($A$2:$A$10)-ROW($A$2)+1)/ISNUMBER(SEARCH($C3,$A$2:$A$10)),COLUMNS($E3:G3))))","v":""},{"$f":"IF(COLUMNS($E3:H3)>$D3,\"\",INDEX($A$2:$A$10,_xlfn.AGGREGATE(15,6,(ROW($A$2:$A$10)-ROW($A$2)+1)/ISNUMBER(SEARCH($C3,$A$2:$A$10)),COLUMNS($E3:H3))))","v":""}]
["Benz Car",null,"Jeep",1,{"$f":"IF(COLUMNS($E4:E4)>$D4,\"\",INDEX($A$2:$A$10,_xlfn.AGGREGATE(15,6,(ROW($A$2:$A$10)-ROW($A$2)+1)/ISNUMBER(SEARCH($C4,$A$2:$A$10)),COLUMNS($E4:E4))))","v":"GMC JEEP"},{"$f":"IF(COLUMNS($E4:F4)>$D4,\"\",INDEX($A$2:$A$10,_xlfn.AGGREGATE(15,6,(ROW($A$2:$A$10)-ROW($A$2)+1)/ISNUMBER(SEARCH($C4,$A$2:$A$10)),COLUMNS($E4:F4))))","v":""},{"$f":"IF(COLUMNS($E4:G4)>$D4,\"\",INDEX($A$2:$A$10,_xlfn.AGGREGATE(15,6,(ROW($A$2:$A$10)-ROW($A$2)+1)/ISNUMBER(SEARCH($C4,$A$2:$A$10)),COLUMNS($E4:G4))))","v":""},{"$f":"IF(COLUMNS($E4:H4)>$D4,\"\",INDEX($A$2:$A$10,_xlfn.AGGREGATE(15,6,(ROW($A$2:$A$10)-ROW($A$2)+1)/ISNUMBER(SEARCH($C4,$A$2:$A$10)),COLUMNS($E4:H4))))","v":""}]
["Audi",null,"Cycle",0,{"$f":"IF(COLUMNS($E5:E5)>$D5,\"\",INDEX($A$2:$A$10,_xlfn.AGGREGATE(15,6,(ROW($A$2:$A$10)-ROW($A$2)+1)/ISNUMBER(SEARCH($C5,$A$2:$A$10)),COLUMNS($E5:E5))))","v":""},{"$f":"IF(COLUMNS($E5:F5)>$D5,\"\",INDEX($A$2:$A$10,_xlfn.AGGREGATE(15,6,(ROW($A$2:$A$10)-ROW($A$2)+1)/ISNUMBER(SEARCH($C5,$A$2:$A$10)),COLUMNS($E5:F5))))","v":""},{"$f":"IF(COLUMNS($E5:G5)>$D5,\"\",INDEX($A$2:$A$10,_xlfn.AGGREGATE(15,6,(ROW($A$2:$A$10)-ROW($A$2)+1)/ISNUMBER(SEARCH($C5,$A$2:$A$10)),COLUMNS($E5:G5))))","v":""},{"$f":"IF(COLUMNS($E5:H5)>$D5,\"\",INDEX($A$2:$A$10,_xlfn.AGGREGATE(15,6,(ROW($A$2:$A$10)-ROW($A$2)+1)/ISNUMBER(SEARCH($C5,$A$2:$A$10)),COLUMNS($E5:H5))))","v":""}]
["Yamaha bike",null,"Bike",3,{"$f":"IF(COLUMNS($E6:E6)>$D6,\"\",INDEX($A$2:$A$10,_xlfn.AGGREGATE(15,6,(ROW($A$2:$A$10)-ROW($A$2)+1)/ISNUMBER(SEARCH($C6,$A$2:$A$10)),COLUMNS($E6:E6))))","v":"Yamaha bike"},{"$f":"IF(COLUMNS($E6:F6)>$D6,\"\",INDEX($A$2:$A$10,_xlfn.AGGREGATE(15,6,(ROW($A$2:$A$10)-ROW($A$2)+1)/ISNUMBER(SEARCH($C6,$A$2:$A$10)),COLUMNS($E6:F6))))","v":"Honda bike"},{"$f":"IF(COLUMNS($E6:G6)>$D6,\"\",INDEX($A$2:$A$10,_xlfn.AGGREGATE(15,6,(ROW($A$2:$A$10)-ROW($A$2)+1)/ISNUMBER(SEARCH($C6,$A$2:$A$10)),COLUMNS($E6:G6))))","v":"Isuzu Bike"},{"$f":"IF(COLUMNS($E6:H6)>$D6,\"\",INDEX($A$2:$A$10,_xlfn.AGGREGATE(15,6,(ROW($A$2:$A$10)-ROW($A$2)+1)/ISNUMBER(SEARCH($C6,$A$2:$A$10)),COLUMNS($E6:H6))))","v":""}]
["GMC",null,"Cow",0,{"$f":"IF(COLUMNS($E7:E7)>$D7,\"\",INDEX($A$2:$A$10,_xlfn.AGGREGATE(15,6,(ROW($A$2:$A$10)-ROW($A$2)+1)/ISNUMBER(SEARCH($C7,$A$2:$A$10)),COLUMNS($E7:E7))))","v":""},{"$f":"IF(COLUMNS($E7:F7)>$D7,\"\",INDEX($A$2:$A$10,_xlfn.AGGREGATE(15,6,(ROW($A$2:$A$10)-ROW($A$2)+1)/ISNUMBER(SEARCH($C7,$A$2:$A$10)),COLUMNS($E7:F7))))","v":""},{"$f":"IF(COLUMNS($E7:G7)>$D7,\"\",INDEX($A$2:$A$10,_xlfn.AGGREGATE(15,6,(ROW($A$2:$A$10)-ROW($A$2)+1)/ISNUMBER(SEARCH($C7,$A$2:$A$10)),COLUMNS($E7:G7))))","v":""},{"$f":"IF(COLUMNS($E7:H7)>$D7,\"\",INDEX($A$2:$A$10,_xlfn.AGGREGATE(15,6,(ROW($A$2:$A$10)-ROW($A$2)+1)/ISNUMBER(SEARCH($C7,$A$2:$A$10)),COLUMNS($E7:H7))))","v":""}]
["FORD Truck"]
["Honda bike",null,"Lookup","Count","Item 1","Item 2","Item 3","Item 4"]
["Isuzu Bike",null,"Car",{"$f":"SUMPRODUCT(--ISNUMBER(SEARCH(C10,$A$2:$A$10)))","v":2},{"$f":"IF(COLUMNS($E10:E10)>$D10,\"\",INDEX($A$2:$A$10,SMALL(IF(ISNUMBER(SEARCH($C10,$A$2:$A$10)),ROW($A$2:$A$10)-ROW($A$2)+1),COLUMNS($E10:E10))))","v":"Toyota car"},{"$f":"IF(COLUMNS($E10:F10)>$D10,\"\",INDEX($A$2:$A$10,SMALL(IF(ISNUMBER(SEARCH($C10,$A$2:$A$10)),ROW($A$2:$A$10)-ROW($A$2)+1),COLUMNS($E10:F10))))","v":"Benz Car"},{"$f":"IF(COLUMNS($E10:G10)>$D10,\"\",INDEX($A$2:$A$10,SMALL(IF(ISNUMBER(SEARCH($C10,$A$2:$A$10)),ROW($A$2:$A$10)-ROW($A$2)+1),COLUMNS($E10:G10))))","v":""},{"$f":"IF(COLUMNS($E10:H10)>$D10,\"\",INDEX($A$2:$A$10,SMALL(IF(ISNUMBER(SEARCH($C10,$A$2:$A$10)),ROW($A$2:$A$10)-ROW($A$2)+1),COLUMNS($E10:H10))))","v":""}]
[null,null,"Truck",{"$f":"SUMPRODUCT(--ISNUMBER(SEARCH(C11,$A$2:$A$10)))","v":1},{"$f":"IF(COLUMNS($E11:E11)>$D11,\"\",INDEX($A$2:$A$10,SMALL(IF(ISNUMBER(SEARCH($C11,$A$2:$A$10)),ROW($A$2:$A$10)-ROW($A$2)+1),COLUMNS($E11:E11))))","v":"FORD Truck"},{"$f":"IF(COLUMNS($E11:F11)>$D11,\"\",INDEX($A$2:$A$10,SMALL(IF(ISNUMBER(SEARCH($C11,$A$2:$A$10)),ROW($A$2:$A$10)-ROW($A$2)+1),COLUMNS($E11:F11))))","v":""},{"$f":"IF(COLUMNS($E11:G11)>$D11,\"\",INDEX($A$2:$A$10,SMALL(IF(ISNUMBER(SEARCH($C11,$A$2:$A$10)),ROW($A$2:$A$10)-ROW($A$2)+1),COLUMNS($E11:G11))))","v":""},{"$f":"IF(COLUMNS($E11:H11)>$D11,\"\",INDEX($A$2:$A$10,SMALL(IF(ISNUMBER(SEARCH($C11,$A$2:$A$10)),ROW($A$2:$A$10)-ROW($A$2)+1),COLUMNS($E11:H11))))","v":""}]
[null,null,"Jeep",1,{"$f":"IF(COLUMNS($E12:E12)>$D12,\"\",INDEX($A$2:$A$10,SMALL(IF(ISNUMBER(SEARCH($C12,$A$2:$A$10)),ROW($A$2:$A$10)-ROW($A$2)+1),COLUMNS($E12:E12))))","v":"GMC JEEP"},{"$f":"IF(COLUMNS($E12:F12)>$D12,\"\",INDEX($A$2:$A$10,SMALL(IF(ISNUMBER(SEARCH($C12,$A$2:$A$10)),ROW($A$2:$A$10)-ROW($A$2)+1),COLUMNS($E12:F12))))","v":""},{"$f":"IF(COLUMNS($E12:G12)>$D12,\"\",INDEX($A$2:$A$10,SMALL(IF(ISNUMBER(SEARCH($C12,$A$2:$A$10)),ROW($A$2:$A$10)-ROW($A$2)+1),COLUMNS($E12:G12))))","v":""},{"$f":"IF(COLUMNS($E12:H12)>$D12,\"\",INDEX($A$2:$A$10,SMALL(IF(ISNUMBER(SEARCH($C12,$A$2:$A$10)),ROW($A$2:$A$10)-ROW($A$2)+1),COLUMNS($E12:H12))))","v":""}]
[null,null,"Cycle",0,{"$f":"IF(COLUMNS($E13:E13)>$D13,\"\",INDEX($A$2:$A$10,SMALL(IF(ISNUMBER(SEARCH($C13,$A$2:$A$10)),ROW($A$2:$A$10)-ROW($A$2)+1),COLUMNS($E13:E13))))","v":""},{"$f":"IF(COLUMNS($E13:F13)>$D13,\"\",INDEX($A$2:$A$10,SMALL(IF(ISNUMBER(SEARCH($C13,$A$2:$A$10)),ROW($A$2:$A$10)-ROW($A$2)+1),COLUMNS($E13:F13))))","v":""},{"$f":"IF(COLUMNS($E13:G13)>$D13,\"\",INDEX($A$2:$A$10,SMALL(IF(ISNUMBER(SEARCH($C13,$A$2:$A$10)),ROW($A$2:$A$10)-ROW($A$2)+1),COLUMNS($E13:G13))))","v":""},{"$f":"IF(COLUMNS($E13:H13)>$D13,\"\",INDEX($A$2:$A$10,SMALL(IF(ISNUMBER(SEARCH($C13,$A$2:$A$10)),ROW($A$2:$A$10)-ROW($A$2)+1),COLUMNS($E13:H13))))","v":""}]
[null,null,"Bike",3,{"$f":"IF(COLUMNS($E14:E14)>$D14,\"\",INDEX($A$2:$A$10,SMALL(IF(ISNUMBER(SEARCH($C14,$A$2:$A$10)),ROW($A$2:$A$10)-ROW($A$2)+1),COLUMNS($E14:E14))))","v":"Yamaha bike"},{"$f":"IF(COLUMNS($E14:F14)>$D14,\"\",INDEX($A$2:$A$10,SMALL(IF(ISNUMBER(SEARCH($C14,$A$2:$A$10)),ROW($A$2:$A$10)-ROW($A$2)+1),COLUMNS($E14:F14))))","v":"Honda bike"},{"$f":"IF(COLUMNS($E14:G14)>$D14,\"\",INDEX($A$2:$A$10,SMALL(IF(ISNUMBER(SEARCH($C14,$A$2:$A$10)),ROW($A$2:$A$10)-ROW($A$2)+1),COLUMNS($E14:G14))))","v":"Isuzu Bike"},{"$f":"IF(COLUMNS($E14:H14)>$D14,\"\",INDEX($A$2:$A$10,SMALL(IF(ISNUMBER(SEARCH($C14,$A$2:$A$10)),ROW($A$2:$A$10)-ROW($A$2)+1),COLUMNS($E14:H14))))","v":""}]
[null,null,"Cow",0,{"$f":"IF(COLUMNS($E15:E15)>$D15,\"\",INDEX($A$2:$A$10,SMALL(IF(ISNUMBER(SEARCH($C15,$A$2:$A$10)),ROW($A$2:$A$10)-ROW($A$2)+1),COLUMNS($E15:E15))))","v":""},{"$f":"IF(COLUMNS($E15:F15)>$D15,\"\",INDEX($A$2:$A$10,SMALL(IF(ISNUMBER(SEARCH($C15,$A$2:$A$10)),ROW($A$2:$A$10)-ROW($A$2)+1),COLUMNS($E15:F15))))","v":""},{"$f":"IF(COLUMNS($E15:G15)>$D15,\"\",INDEX($A$2:$A$10,SMALL(IF(ISNUMBER(SEARCH($C15,$A$2:$A$10)),ROW($A$2:$A$10)-ROW($A$2)+1),COLUMNS($E15:G15))))","v":""},{"$f":"IF(COLUMNS($E15:H15)>$D15,\"\",INDEX($A$2:$A$10,SMALL(IF(ISNUMBER(SEARCH($C15,$A$2:$A$10)),ROW($A$2:$A$10)-ROW($A$2)+1),COLUMNS($E15:H15))))","v":""}]

{"sheet":"Sheet1","index":5,"n_rows":15,"n_cols":8,"rows_kept":15,"cut":false,"hidden":false,"merged":[]}
["List",null,"Lookup","Count","Item 1","Item 2","Item 3","Item 4"]
["Toyota car",null,"Car",{"$f":"SUMPRODUCT(--ISNUMBER(SEARCH(C2,$A$2:$A$10)))","v":2},{"$f":"IF(COLUMNS($E2:E2)>$D2,\"\",INDEX($A$2:$A$10,SMALL(IF(ISNUMBER(SEARCH($C2,$A$2:$A$10)),ROW($A$2:$A$10)-ROW($A$2)+1),COLUMNS($E2:E2))))","v":"Toyota car"},{"$f":"IF(COLUMNS($E2:F2)>$D2,\"\",INDEX($A$2:$A$10,SMALL(IF(ISNUMBER(SEARCH($C2,$A$2:$A$10)),ROW($A$2:$A$10)-ROW($A$2)+1),COLUMNS($E2:F2))))","v":"Benz Car"},{"$f":"IF(COLUMNS($E2:G2)>$D2,\"\",INDEX($A$2:$A$10,SMALL(IF(ISNUMBER(SEARCH($C2,$A$2:$A$10)),ROW($A$2:$A$10)-ROW($A$2)+1),COLUMNS($E2:G2))))","v":""},{"$f":"IF(COLUMNS($E2:H2)>$D2,\"\",INDEX($A$2:$A$10,SMALL(IF(ISNUMBER(SEARCH($C2,$A$2:$A$10)),ROW($A$2:$A$10)-ROW($A$2)+1),COLUMNS($E2:H2))))","v":""}]
["GMC JEEP",null,"Truck",1,{"$f":"IF(COLUMNS($E3:E3)>$D3,\"\",INDEX($A$2:$A$10,SMALL(IF(ISNUMBER(SEARCH($C3,$A$2:$A$10)),ROW($A$2:$A$10)-ROW($A$2)+1),COLUMNS($E3:E3))))","v":"FORD Truck"},{"$f":"IF(COLUMNS($E3:F3)>$D3,\"\",INDEX($A$2:$A$10,SMALL(IF(ISNUMBER(SEARCH($C3,$A$2:$A$10)),ROW($A$2:$A$10)-ROW($A$2)+1),COLUMNS($E3:F3))))","v":""},{"$f":"IF(COLUMNS($E3:G3)>$D3,\"\",INDEX($A$2:$A$10,SMALL(IF(ISNUMBER(SEARCH($C3,$A$2:$A$10)),ROW($A$2:$A$10)-ROW($A$2)+1),COLUMNS($E3:G3))))","v":""},{"$f":"IF(COLUMNS($E3:H3)>$D3,\"\",INDEX($A$2:$A$10,SMALL(IF(ISNUMBER(SEARCH($C3,$A$2:$A$10)),ROW($A$2:$A$10)-ROW($A$2)+1),COLUMNS($E3:H3))))","v":""}]
["Benz Car",null,"Jeep",1,{"$f":"IF(COLUMNS($E4:E4)>$D4,\"\",INDEX($A$2:$A$10,SMALL(IF(ISNUMBER(SEARCH($C4,$A$2:$A$10)),ROW($A$2:$A$10)-ROW($A$2)+1),COLUMNS($E4:E4))))","v":"GMC JEEP"},{"$f":"IF(COLUMNS($E4:F4)>$D4,\"\",INDEX($A$2:$A$10,SMALL(IF(ISNUMBER(SEARCH($C4,$A$2:$A$10)),ROW($A$2:$A$10)-ROW($A$2)+1),COLUMNS($E4:F4))))","v":""},{"$f":"IF(COLUMNS($E4:G4)>$D4,\"\",INDEX($A$2:$A$10,SMALL(IF(ISNUMBER(SEARCH($C4,$A$2:$A$10)),ROW($A$2:$A$10)-ROW($A$2)+1),COLUMNS($E4:G4))))","v":""},{"$f":"IF(COLUMNS($E4:H4)>$D4,\"\",INDEX($A$2:$A$10,SMALL(IF(ISNUMBER(SEARCH($C4,$A$2:$A$10)),ROW($A$2:$A$10)-ROW($A$2)+1),COLUMNS($E4:H4))))","v":""}]
["Audi",null,"Cycle",0,{"$f":"IF(COLUMNS($E5:E5)>$D5,\"\",INDEX($A$2:$A$10,SMALL(IF(ISNUMBER(SEARCH($C5,$A$2:$A$10)),ROW($A$2:$A$10)-ROW($A$2)+1),COLUMNS($E5:E5))))","v":""},{"$f":"IF(COLUMNS($E5:F5)>$D5,\"\",INDEX($A$2:$A$10,SMALL(IF(ISNUMBER(SEARCH($C5,$A$2:$A$10)),ROW($A$2:$A$10)-ROW($A$2)+1),COLUMNS($E5:F5))))","v":""},{"$f":"IF(COLUMNS($E5:G5)>$D5,\"\",INDEX($A$2:$A$10,SMALL(IF(ISNUMBER(SEARCH($C5,$A$2:$A$10)),ROW($A$2:$A$10)-ROW($A$2)+1),COLUMNS($E5:G5))))","v":""},{"$f":"IF(COLUMNS($E5:H5)>$D5,\"\",INDEX($A$2:$A$10,SMALL(IF(ISNUMBER(SEARCH($C5,$A$2:$A$10)),ROW($A$2:$A$10)-ROW($A$2)+1),COLUMNS($E5:H5))))","v":""}]
["Yamaha bike",null,"Bike",3,{"$f":"IF(COLUMNS($E6:E6)>$D6,\"\",INDEX($A$2:$A$10,SMALL(IF(ISNUMBER(SEARCH($C6,$A$2:$A$10)),ROW($A$2:$A$10)-ROW($A$2)+1),COLUMNS($E6:E6))))","v":"Yamaha bike"},{"$f":"IF(COLUMNS($E6:F6)>$D6,\"\",INDEX($A$2:$A$10,SMALL(IF(ISNUMBER(SEARCH($C6,$A$2:$A$10)),ROW($A$2:$A$10)-ROW($A$2)+1),COLUMNS($E6:F6))))","v":"Honda bike"},{"$f":"IF(COLUMNS($E6:G6)>$D6,\"\",INDEX($A$2:$A$10,SMALL(IF(ISNUMBER(SEARCH($C6,$A$2:$A$10)),ROW($A$2:$A$10)-ROW($A$2)+1),COLUMNS($E6:G6))))","v":"Isuzu Bike"},{"$f":"IF(COLUMNS($E6:H6)>$D6,\"\",INDEX($A$2:$A$10,SMALL(IF(ISNUMBER(SEARCH($C6,$A$2:$A$10)),ROW($A$2:$A$10)-ROW($A$2)+1),COLUMNS($E6:H6))))","v":""}]
["GMC",null,"Cow",0,{"$f":"IF(COLUMNS($E7:E7)>$D7,\"\",INDEX($A$2:$A$10,SMALL(IF(ISNUMBER(SEARCH($C7,$A$2:$A$10)),ROW($A$2:$A$10)-ROW($A$2)+1),COLUMNS($E7:E7))))","v":""},{"$f":"IF(COLUMNS($E7:F7)>$D7,\"\",INDEX($A$2:$A$10,SMALL(IF(ISNUMBER(SEARCH($C7,$A$2:$A$10)),ROW($A$2:$A$10)-ROW($A$2)+1),COLUMNS($E7:F7))))","v":""},{"$f":"IF(COLUMNS($E7:G7)>$D7,\"\",INDEX($A$2:$A$10,SMALL(IF(ISNUMBER(SEARCH($C7,$A$2:$A$10)),ROW($A$2:$A$10)-ROW($A$2)+1),COLUMNS($E7:G7))))","v":""},{"$f":"IF(COLUMNS($E7:H7)>$D7,\"\",INDEX($A$2:$A$10,SMALL(IF(ISNUMBER(SEARCH($C7,$A$2:$A$10)),ROW($A$2:$A$10)-ROW($A$2)+1),COLUMNS($E7:H7))))","v":""}]
["FORD Truck"]
["Honda bike",null,"Lookup","Count","Item 1","Item 2","Item 3","Item 4"]
["Isuzu Bike",null,"Car",{"$f":"SUMPRODUCT(--ISNUMBER(SEARCH(C10,$A$2:$A$10)))","v":2},{"$f":"IF(COLUMNS($E10:E10)>$D10,\"\",INDEX($A$2:$A$10,_xlfn.AGGREGATE(15,6,(ROW($A$2:$A$10)-ROW($A$2)+1)/ISNUMBER(SEARCH($C10,$A$2:$A$10)),COLUMNS($E10:E10))))","v":"Toyota car"},{"$f":"IF(COLUMNS($E10:F10)>$D10,\"\",INDEX($A$2:$A$10,_xlfn.AGGREGATE(15,6,(ROW($A$2:$A$10)-ROW($A$2)+1)/ISNUMBER(SEARCH($C10,$A$2:$A$10)),COLUMNS($E10:F10))))","v":"Benz Car"},{"$f":"IF(COLUMNS($E10:G10)>$D10,\"\",INDEX($A$2:$A$10,_xlfn.AGGREGATE(15,6,(ROW($A$2:$A$10)-ROW($A$2)+1)/ISNUMBER(SEARCH($C10,$A$2:$A$10)),COLUMNS($E10:G10))))","v":""},{"$f":"IF(COLUMNS($E10:H10)>$D10,\"\",INDEX($A$2:$A$10,_xlfn.AGGREGATE(15,6,(ROW($A$2:$A$10)-ROW($A$2)+1)/ISNUMBER(SEARCH($C10,$A$2:$A$10)),COLUMNS($E10:H10))))","v":""}]
[null,null,"Truck",1,{"$f":"IF(COLUMNS($E11:E11)>$D11,\"\",INDEX($A$2:$A$10,_xlfn.AGGREGATE(15,6,(ROW($A$2:$A$10)-ROW($A$2)+1)/ISNUMBER(SEARCH($C11,$A$2:$A$10)),COLUMNS($E11:E11))))","v":"FORD Truck"},{"$f":"IF(COLUMNS($E11:F11)>$D11,\"\",INDEX($A$2:$A$10,_xlfn.AGGREGATE(15,6,(ROW($A$2:$A$10)-ROW($A$2)+1)/ISNUMBER(SEARCH($C11,$A$2:$A$10)),COLUMNS($E11:F11))))","v":""},{"$f":"IF(COLUMNS($E11:G11)>$D11,\"\",INDEX($A$2:$A$10,_xlfn.AGGREGATE(15,6,(ROW($A$2:$A$10)-ROW($A$2)+1)/ISNUMBER(SEARCH($C11,$A$2:$A$10)),COLUMNS($E11:G11))))","v":""},{"$f":"IF(COLUMNS($E11:H11)>$D11,\"\",INDEX($A$2:$A$10,_xlfn.AGGREGATE(15,6,(ROW($A$2:$A$10)-ROW($A$2)+1)/ISNUMBER(SEARCH($C11,$A$2:$A$10)),COLUMNS($E11:H11))))","v":""}]
[null,null,"Jeep",1,{"$f":"IF(COLUMNS($E12:E12)>$D12,\"\",INDEX($A$2:$A$10,_xlfn.AGGREGATE(15,6,(ROW($A$2:$A$10)-ROW($A$2)+1)/ISNUMBER(SEARCH($C12,$A$2:$A$10)),COLUMNS($E12:E12))))","v":"GMC JEEP"},{"$f":"IF(COLUMNS($E12:F12)>$D12,\"\",INDEX($A$2:$A$10,_xlfn.AGGREGATE(15,6,(ROW($A$2:$A$10)-ROW($A$2)+1)/ISNUMBER(SEARCH($C12,$A$2:$A$10)),COLUMNS($E12:F12))))","v":""},{"$f":"IF(COLUMNS($E12:G12)>$D12,\"\",INDEX($A$2:$A$10,_xlfn.AGGREGATE(15,6,(ROW($A$2:$A$10)-ROW($A$2)+1)/ISNUMBER(SEARCH($C12,$A$2:$A$10)),COLUMNS($E12:G12))))","v":""},{"$f":"IF(COLUMNS($E12:H12)>$D12,\"\",INDEX($A$2:$A$10,_xlfn.AGGREGATE(15,6,(ROW($A$2:$A$10)-ROW($A$2)+1)/ISNUMBER(SEARCH($C12,$A$2:$A$10)),COLUMNS($E12:H12))))","v":""}]
[null,null,"Cycle",0,{"$f":"IF(COLUMNS($E13:E13)>$D13,\"\",INDEX($A$2:$A$10,_xlfn.AGGREGATE(15,6,(ROW($A$2:$A$10)-ROW($A$2)+1)/ISNUMBER(SEARCH($C13,$A$2:$A$10)),COLUMNS($E13:E13))))","v":""},{"$f":"IF(COLUMNS($E13:F13)>$D13,\"\",INDEX($A$2:$A$10,_xlfn.AGGREGATE(15,6,(ROW($A$2:$A$10)-ROW($A$2)+1)/ISNUMBER(SEARCH($C13,$A$2:$A$10)),COLUMNS($E13:F13))))","v":""},{"$f":"IF(COLUMNS($E13:G13)>$D13,\"\",INDEX($A$2:$A$10,_xlfn.AGGREGATE(15,6,(ROW($A$2:$A$10)-ROW($A$2)+1)/ISNUMBER(SEARCH($C13,$A$2:$A$10)),COLUMNS($E13:G13))))","v":""},{"$f":"IF(COLUMNS($E13:H13)>$D13,\"\",INDEX($A$2:$A$10,_xlfn.AGGREGATE(15,6,(ROW($A$2:$A$10)-ROW($A$2)+1)/ISNUMBER(SEARCH($C13,$A$2:$A$10)),COLUMNS($E13:H13))))","v":""}]
[null,null,"Bike",3,{"$f":"IF(COLUMNS($E14:E14)>$D14,\"\",INDEX($A$2:$A$10,_xlfn.AGGREGATE(15,6,(ROW($A$2:$A$10)-ROW($A$2)+1)/ISNUMBER(SEARCH($C14,$A$2:$A$10)),COLUMNS($E14:E14))))","v":"Yamaha bike"},{"$f":"IF(COLUMNS($E14:F14)>$D14,\"\",INDEX($A$2:$A$10,_xlfn.AGGREGATE(15,6,(ROW($A$2:$A$10)-ROW($A$2)+1)/ISNUMBER(SEARCH($C14,$A$2:$A$10)),COLUMNS($E14:F14))))","v":"Honda bike"},{"$f":"IF(COLUMNS($E14:G14)>$D14,\"\",INDEX($A$2:$A$10,_xlfn.AGGREGATE(15,6,(ROW($A$2:$A$10)-ROW($A$2)+1)/ISNUMBER(SEARCH($C14,$A$2:$A$10)),COLUMNS($E14:G14))))","v":"Isuzu Bike"},{"$f":"IF(COLUMNS($E14:H14)>$D14,\"\",INDEX($A$2:$A$10,_xlfn.AGGREGATE(15,6,(ROW($A$2:$A$10)-ROW($A$2)+1)/ISNUMBER(SEARCH($C14,$A$2:$A$10)),COLUMNS($E14:H14))))","v":""}]
[null,null,"Cow",0,{"$f":"IF(COLUMNS($E15:E15)>$D15,\"\",INDEX($A$2:$A$10,_xlfn.AGGREGATE(15,6,(ROW($A$2:$A$10)-ROW($A$2)+1)/ISNUMBER(SEARCH($C15,$A$2:$A$10)),COLUMNS($E15:E15))))","v":""},{"$f":"IF(COLUMNS($E15:F15)>$D15,\"\",INDEX($A$2:$A$10,_xlfn.AGGREGATE(15,6,(ROW($A$2:$A$10)-ROW($A$2)+1)/ISNUMBER(SEARCH($C15,$A$2:$A$10)),COLUMNS($E15:F15))))","v":""},{"$f":"IF(COLUMNS($E15:G15)>$D15,\"\",INDEX($A$2:$A$10,_xlfn.AGGREGATE(15,6,(ROW($A$2:$A$10)-ROW($A$2)+1)/ISNUMBER(SEARCH($C15,$A$2:$A$10)),COLUMNS($E15:G15))))","v":""},{"$f":"IF(COLUMNS($E15:H15)>$D15,\"\",INDEX($A$2:$A$10,_xlfn.AGGREGATE(15,6,(ROW($A$2:$A$10)-ROW($A$2)+1)/ISNUMBER(SEARCH($C15,$A$2:$A$10)),COLUMNS($E15:H15))))","v":""}]